Workbook

Sheet CONTRATACON FEBRERO 2020
B1: LISTADO CONTRATACION OPS MES DE FEBRERO 2020
B2: CEDULA | C2: NOMBRES APELLIDOS CONTRATISTA | D2: #OPS | E2: OBJETO DEL CONTRATO | F2: FECHA INICIO | G2: FECHA TERMINACION | H2: VALOR MENSUAL | I2: VALOR TOTAL | J2: SUPERVISOR | K2: CARGO | L2: CENTRO DE SALUD | M2: CDP | N2: RP | O2: FECHA SECOP LINK SECOP | P2: LINK SECOOP
A3: 1 | B3: 7455342 | C3: ADOLFO MARIO DE LA HOZ BERNAL | D3: 0454-2020 | E3: MEDICO DE URGENCIA | F3: 03 FEBRERO DE 2020 | G3: 29 FEBRERO DE 2020 | H3: 2560000 | I3: =H3*1 -> 2560000 | J3: BETTY PERTUZ | K3: SUBGERENTE CIENTIFICO | L3: CIUDADELA METROPOLITANA | M3: 550 | N3: 1181 | O3: 20/02/2020 | P3: https://www.contratos.gov.co/consultas/detalleProceso.do?numConstancia=20-4-10498388
A4: =+A3+1 -> 2 | B4: 55309225 | C4: ADRIANA BALLESTAS MARTINEZ | D4: 0455-2020 | E4: MEDICO DE URGENCIA | F4: 03 FEBRERO DE 2020 | G4: 29 FEBRERO DE 2020 | H4: 2560000 | I4: 2560000 | J4: BETTY PERTUZ | K4: SUBGERENTE CIENTIFICO | L4: CENTRO DE 13 DE JUNIO | M4: 551 | N4: 1182 | O4: 20/02/2020 | P4: https://www.contratos.gov.co/consultas/detalleProceso.do?numConstancia=20-4-10498421
A5: =+A4+1 -> 3 | B5: 1103109488 | C5: ADRIANA MARCELA CASTAÑO RODELO | D5: 0456-2020 | E5: MEDICO CARDIOVASCULAR | F5: 03 FEBRERO DE 2020 | G5: 29 FEBRERO DE 2020 | H5: 4420000 | I5: 4420000 | J5: DIANA MARTINEZ PACHECO | K5: COORD CENTRO DE SALUD | L5: CENTRO SALAMANCA | M5: 552 | N5: 1183 | O5: 20/02/2020 | P5: https://www.contratos.gov.co/consultas/detalleProceso.do?numConstancia=20-4-10498435
A6: 4 | B6: 22465848 | C6: ADRIANA OROZCO CANTILLO | D6: 0457-2020 | E6: AUXILIAR SERVICIOS GENERALES | F6: 03 FEBRERO DE 2020 | G6: 29 FEBRERO DE 2020 | H6: 1215000 | I6: 1215000 | J6: LUIS CARLOS DE LEON BERNIER | K6: COORD CENTRO SALUD | L6: CENTRO MACLOVIA | M6: 553 | N6: 1184 | O6: 20/02/2020 | P6: https://www.contratos.gov.co/consultas/detalleProceso.do?numConstancia=20-4-10498467
A7: 5 | B7: 1140895535 | C7: ADRIANA PAOLA GONZALEZ ROMERO | D7: 0458-2020 | E7: ENFERMERA JEFE | F7: 03 FEBRERO DE 2020 | G7: 29 FEBRERO DE 2020 | H7: 2120000 | I7: 2120000 | J7: VICTOR MIRANDA | K7: SUBGERENTE CIENTIFICO | L7: LA ESPERANZA | M7: 554 | N7: 1185 | O7: 20/02/2020 | P7: https://www.contratos.gov.co/consultas/detalleProceso.do?numConstancia=20-4-10498489
A8: 6 | B8: 36555688 | C8: ALBA SOLANO COCA | D8: 0460-2020 | E8: ODONTOLOGO | F8: 03 FEBRERO DE 2020 | G8: 29 FEBRERO DE 2020 | H8: 1900000 | I8: 1900000 | J8: CARLOS VISBAL JIMENEZ | K8: COORD CENTRO SALUD | L8: CENTRO COSTA HERMOSA | M8: 556 | N8: 1187 | O8: 20/02/2020 | P8: https://www.contratos.gov.co/consultas/detalleProceso.do?numConstancia=20-4-10498539
A9: 7 | B9: 1140874429 | C9: ALBERTO DE LA OSSA DE AVILA | D9: 0461-2020 | E9: PROFESIONAL DE PRESUPUESTO | F9: 03 FEBRERO DE 2020 | G9: 29 FEBRERO DE 2020 | H9: 3000000 | I9: 3000000 | J9: NICOLAS OQUENDO | K9: DIRECTOR FINANCIERO | L9: ADMON COSTA HERMOSA | M9: 557 | N9: 1188 | O9: 20/02/2020 | P9: https://www.contratos.gov.co/consultas/detalleProceso.do?numConstancia=20-4-10498561
A10: 8 | B10: 8505956 | C10: ALBERTO NAVARRO MORALES | D10: 0462-2020 | E10: AUXILIAR DE FACTURACION URGENCIA | F10: 03 FEBRERO DE 2020 | G10: 29 FEBRERO DE 2020 | H10: 1400000 | I10: 1400000 | J10: SANDRA SANMARTIN | K10: SUB GERENTE ADMINISTRATIVO | L10: CENTRO COSTA HERMOSA | M10: 558 | N10: 1189 | O10: 20/02/2020 | P10: https://www.contratos.gov.co/consultas/detalleProceso.do?numConstancia=20-4-10498615
A11: 9 | B11: 37577926 | C11: ALCIRA CAMPO ALCOZER | D11: 0463-2020 | E11: AUXILIAR SERVICIOS GENERALES | F11: 03 FEBRERO DE 2020 | G11: 29 FEBRERO DE 2020 | H11: 1215000 | I11: 1215000 | J11: SANDRA SANMARTIN | K11: SUB GERENTE ADMINISTRATIVO | L11: CENTRO COSTA HERMOSA | M11: 559 | N11: 1190 | O11: 20/02/2020 | P11: https://www.contratos.gov.co/consultas/detalleProceso.do?numConstancia=20-4-10498633
A12: 10 | B12: 64543985 | C12: ALCIRA GOMEZ ARRIETA | D12: 0464-2020 | E12: ENFERMERA JEFE COORDINADORA PAI | F12: 03 FEBRERO DE 2020 | G12: 29 FEBRERO DE 2020 | H12: 4000000 | I12: 4000000 | J12: NILSA ARIZA MARQUEZ | K12: COORDINADOR P Y P | L12: CENTRO MANUELA BELTRAN | M12: 560 | N12: 1191 | O12: 20/02/2020 | P12: https://www.contratos.gov.co/consultas/detalleProceso.do?numConstancia=20-4-10498661
A13: 11 | B13: 22615419 | C13: ALCIRA ROCIO RIVERA DONADO | D13: 0465-2020 | E13: AUXILIAR DE ARCHIVO | F13: 03 FEBRERO DE 2020 | G13: 29 FEBRERO DE 2020 | H13: 1500000 | I13: 1500000 | J13: SANDRA SANMARTIN | K13: SUB GERENTE ADMINISTRATIVO | L13: CENTRO COSTA HERMOSA | M13: 561 | N13: 1192 | O13: 20/02/2020 | P13: https://www.contratos.gov.co/consultas/detalleProceso.do?numConstancia=20-4-10498703
A14: 12 | B14: 1045676663 | C14: ALEXANDER MENDOZA DUARTE | D14: 0466-2020 | E14: INGENIERO DE HARDWARE Y REDES | F14: 03 FEBRERO DE 2020 | G14: 29 FEBRERO DE 2020 | H14: 3000000 | I14: 3000000 | J14: ZULI ROMERO | K14: COORDINADOR TIC | L14: ADMON COSTA HERMOSA | M14: 562 | N14: 1193 | O14: 20/02/2020 | P14: https://www.contratos.gov.co/consultas/detalleProceso.do?numConstancia=20-4-10498748
A15: 13 | B15: 8777621 | C15: ALEXANDER MIGUEL SALAZAR CABALLERO | D15: 0467-2020 | E15: AUXILIAR DE FACTURACION URGENCIA | F15: 03 FEBRERO DE 2020 | G15: 29 FEBRERO DE 2020 | H15: 1400000 | I15: 1400000 | J15: SANDRA SANMARTIN | K15: SUB GERENTE ADMINISTRATIVO | L15: CENTRO DE SALUD EL PARQUE | M15: 563 | N15: 1194 | O15: 20/02/2020 | P15: https://www.contratos.gov.co/consultas/detalleProceso.do?numConstancia=20-4-10498766
A16: 14 | B16: 22523223 | C16: ALEXANDRA ESTHER MOLINA PEREZ | D16: 0468-2020 | E16: AUXILIAR SERVICIOS GENERALES URGENCIA | F16: 03 FEBRERO DE 2020 | G16: 29 FEBRERO DE 2020 | H16: 1378000 | I16: 1378000 | J16: SERGIO BOVEA MARIN | K16: COORD CENTRO SALUD | L16: CENTRO DE 13 DE JUNIO | M16: 564 | N16: 1195 | O16: 20/02/2020 | P16: https://www.contratos.gov.co/consultas/detalleProceso.do?numConstancia=20-4-10498787
A17: 15 | B17: 1140881787 | C17: ALEXANDRA GUZMAN QUINTERO | D17: 0469-2020 | E17: ASISTENTE OFICINA JURIDICA | F17: 03 FEBRERO DE 2020 | G17: 29 FEBRERO DE 2020 | H17: 3000000 | I17: 3000000 | J17: ORNELLA FIORENTINO | K17: JEFE OFICINA JURIDICA | L17: CENTRO COSTA HERMOSA | M17: 565 | N17: 1196 | O17: 20/02/2020 | P17: https://www.contratos.gov.co/consultas/detalleProceso.do?numConstancia=20-4-10498815
A18: 16 | B18: 1045716759 | C18: ALFREDO ANGULO JULIAO | D18: 0470-2020 | E18: AUXILIAR DE FACTURACION URGENCIA | F18: 03 FEBRERO DE 2020 | G18: 29 FEBRERO DE 2020 | H18: 1400000 | I18: 1400000 | J18: SANDRA SANMARTIN | K18: SUB GERENTE ADMINISTRATIVO | L18: CENTRO COSTA HERMOSA | M18: 566 | N18: 1197 | O18: 20/02/2020 | P18: https://www.contratos.gov.co/consultas/detalleProceso.do?numConstancia=20-4-10498828
A19: 17 | B19: 8721508 | C19: ALONSO JOSÉ RIQUETT DE LA HOZ | D19: 0471-2020 | E19: MEDICO P Y P | F19: 03 FEBRERO DE 2020 | G19: 29 FEBRERO DE 2020 | H19: 2120000 | I19: 2120000 | J19: CARLOS VISBAL JIMENEZ | K19: COORD CENTRO SALUD | L19: CENTRO COSTA HERMOSA | M19: 567 | N19: 1198 | O19: 20/02/2020 | P19: https://www.contratos.gov.co/consultas/detalleProceso.do?numConstancia=20-4-10498889
A20: 18 | B20: 8697543 | C20: ALVARO ARENAS GONZALEZ | D20: 0472-2020 | E20: MEDICO DE MATERNIDAD | F20: 03 FEBRERO DE 2020 | G20: 29 FEBRERO DE 2020 | H20: 4240000 | I20: 4240000 | J20: SERGIO BOVEA MARIN | K20: COORD CENTRO SALUD | L20: CENTRO DE 13 DE JUNIO | M20: 568 | N20: 1199 | O20: 20/02/2020 | P20: https://www.contratos.gov.co/consultas/detalleProceso.do?numConstancia=20-4-10498932
A21: 19 | B21: 7407679 | C21: AMEFI PACHECO CERA | D21: 0473-2020 | E21: ORIENTADOR | F21: 03 FEBRERO DE 2020 | G21: 29 FEBRERO DE 2020 | H21: 1270000 | I21: 1270000 | J21: VICTOR MIRANDA | K21: SUB GERENTE ADMINISTRATIVO | L21: LA ESPERANZA | M21: 569 | N21: 1200 | O21: 20/02/2020 | P21: https://www.contratos.gov.co/consultas/detalleProceso.do?numConstancia=20-4-10498946
A22: 20 | B22: 1047338042 | C22: AMINTA PARDO GUZMAN | D22: 0474-2020 | E22: AUXILIAR DE ENFERMERIA CONSULTA EXTERNA | F22: 03 FEBRERO DE 2020 | G22: 29 FEBRERO DE 2020 | H22: 1166000 | I22: 1166000 | J22: DIANA MARTINEZ PACHECO | K22: COORD CENTRO DE SALUD | L22: CENTRO SALAMANCA | M22: 570 | N22: 1201 | O22: 20/02/2020 | P22: https://www.contratos.gov.co/consultas/detalleProceso.do?numConstancia=20-4-10498964
A23: 21 | B23: 1045688469 | C23: AMY MOVILLA COMAS | D23: 0475-2020 | E23: ENFERMERA JEFE CONSULTA EXTERNA | F23: 03 FEBRERO DE 2020 | G23: 29 FEBRERO DE 2020 | H23: 2300000 | I23: 2300000 | J23: DIANA MARTINEZ PACHECO | K23: COORD CENTRO DE SALUD | L23: CENTRO SALAMANCA | M23: 571 | N23: 1202 | O23: 20/02/2020 | P23: https://www.contratos.gov.co/consultas/detalleProceso.do?numConstancia=20-4-10499087
A24: 22 | B24: 32813366 | C24: ANA GONZALEZ ZAMBRANO | D24: 0476-2020 | E24: AUXILIAR DE ARCHIVO | F24: 03 FEBRERO DE 2020 | G24: 29 FEBRERO DE 2020 | H24: 1500000 | I24: 1500000 | J24: SANDRA SANMARTIN | K24: SUB GERENTE ADMINISTRATIVO | L24: ARCHIVO CENTRAL | M24: 572 | N24: 1203 | O24: 20/02/2020 | P24: https://www.contratos.gov.co/consultas/detalleProceso.do?numConstancia=20-4-10499185
A25: 23 | B25: 1045704276 | C25: ANA MILENA HERRERA ALVIS | D25: 0477-2020 | E25: ENFERMERA JEFE | F25: 03 FEBRERO DE 2020 | G25: 29 FEBRERO DE 2020 | H25: 2300000 | I25: 2300000 | J25: NILSA ARIZA MARQUEZ | K25: COORDINADOR P Y P | L25: CENTRO COSTA HERMOSA | M25: 573 | N25: 1204 | O25: 20/02/2020 | P25: https://www.contratos.gov.co/consultas/detalleProceso.do?numConstancia=20-4-10499354
A26: 24 | B26: 22739459 | C26: ANA MILENA L´HOESTE ROA | D26: 0478-2020 | E26: COORDINADORA CONSULTA EXTERNA | F26: 03 FEBRERO DE 2020 | G26: 29 FEBRERO DE 2020 | H26: 3000000 | I26: 3000000 | J26: BETTY PERTUZ | K26: SUBGERENTE CIENTIFICO | L26: CENTRO COSTA HERMOSA | M26: 574 | N26: 1205 | O26: 20/02/2020 | P26: https://www.contratos.gov.co/consultas/detalleProceso.do?numConstancia=20-4-10499390
A27: 25 | B27: 32825462 | C27: ANAIS DE JESUS RODRIGUEZ DE DE LAS AGUAS | D27: 0479-2020 | E27: AUXILIAR SERVICIOS GENERALES | F27: 03 FEBRERO DE 2020 | G27: 29 FEBRERO DE 2020 | H27: 1215000 | I27: 1215000 | J27: AIX PALACIO | K27: COORD CENTRO DE SALUD | L27: CENTRO SALAMANCA | M27: 575 | N27: 1206 | O27: 20/02/2020 | P27: https://www.contratos.gov.co/consultas/detalleProceso.do?numConstancia=20-4-10499469
A28: 26 | B28: 1045706259 | C28: ANDREA CAROLINA HERRERA ORTEGA | D28: 0480-2020 | E28: MEDICO CONSULTA EXTERNA | F28: 03 FEBRERO DE 2020 | G28: 29 FEBRERO DE 2020 | H28: 2120000 | I28: 2120000 | J28: LUIS GRANADOS GOMEZ | K28: COORD CENTRO SALUD | L28: CENTRO MANUELA BELTRAN | M28: 576 | N28: 1207 | O28: 20/02/2020 | P28: https://www.contratos.gov.co/consultas/detalleProceso.do?numConstancia=20-4-10499545
A29: 27 | B29: 1042443216 | C29: ANDRES ALBERTO GARCIA OSPINO | D29: 0481-2020 | E29: AUXILIAR DE FACTURACION URGENCIA | F29: 03 FEBRERO DE 2020 | G29: 29 FEBRERO DE 2020 | H29: 1500000 | I29: 1500000 | J29: SANDRA SANMARTIN | K29: SUB GERENTE ADMINISTRATIVO | L29: ARCHIVO CENTRAL | M29: 577 | N29: 1208 | O29: 20/02/2020 | P29: https://www.contratos.gov.co/consultas/detalleProceso.do?numConstancia=20-4-10499616
A30: 28 | B30: 1047337496 | C30: ANTHONY MIGUEL ORELLANO JIMENEZ | D30: 0482-2020 | E30: AUXILIAR DE FACTURACION URGENCIA | F30: 03 FEBRERO DE 2020 | G30: 29 FEBRERO DE 2020 | H30: 1400000 | I30: 1400000 | J30: SANDRA SANMARTIN | K30: SUB GERENTE ADMINISTRATIVO | L30: CENTRO COSTA HERMOSA | M30: 578 | N30: 1209 | O30: 20/02/2020 | P30: https://www.contratos.gov.co/consultas/detalleProceso.do?numConstancia=20-4-10499677
A31: 29 | B31: 22736159 | C31: ARACELLY HERNANDEZ GARCIA | D31: 0483-2020 | E31: DIGITADOR | F31: 03 FEBRERO DE 2020 | G31: 29 FEBRERO DE 2020 | H31: 2500000 | I31: 2500000 | J31: NILSA ARIZA MARQUEZ | K31: COORDINADOR P Y P | L31: CENTRO COSTA HERMOSA | M31: 579 | N31: 1210 | O31: 20/02/2020 | P31: https://www.contratos.gov.co/consultas/detalleProceso.do?numConstancia=20-4-10499737
A32: 30 | B32: 32869290 | C32: ARGENEDITH YEPEZ ESCALANTE | D32: 0484-2020 | E32: MEDICO P Y P | F32: 03 FEBRERO DE 2020 | G32: 29 FEBRERO DE 2020 | H32: 2120000 | I32: 2120000 | J32: LUIS GRANADOS GOMEZ | K32: COORD CENTRO SALUD | L32: CENTRO MANUELA BELTRAN | M32: 580 | N32: 1211 | O32: 20/02/2020 | P32: https://www.contratos.gov.co/consultas/detalleProceso.do?numConstancia=20-4-10499783
A33: 31 | B33: 1140850083 | C33: ARLINY YANNINY RAMIREZ FIGUEROA | D33: 0485-2020 | E33: ASESOR DE PRESUPUESTO | F33: 03 FEBRERO DE 2020 | G33: 29 FEBRERO DE 2020 | H33: 4000000 | I33: 4000000 | J33: NICOLAS OQUENDO | K33: DIRECTOR FINANCIERO | L33: ADMON COSTA HERMOSA | M33: 581 | N33: 1212 | O33: 20/02/2020 | P33: https://www.contratos.gov.co/consultas/detalleProceso.do?numConstancia=20-4-10499810
A34: 32 | B34: 1042444527 | C34: ARNOLD RINCON MARTINEZ | D34: 0486-2020 | E34: PROFESIONAL PLANEACION ESTRATEGICA | F34: 03 FEBRERO DE 2020 | G34: 29 FEBRERO DE 2020 | H34: 4000000 | I34: =H34*1 -> 4000000 | J34: SANDRA SANMARTIN | K34: SUB GERENTE ADMINISTRATIVO | L34: CENTRO COSTA HERMOSA | M34: 582 | N34: 1213 | O34: 20/02/2020 | P34: https://www.contratos.gov.co/consultas/detalleProceso.do?numConstancia=20-4-10499986
A35: 33 | B35: 32767778 | C35: BEATRIZ ELENA GUTIERREZ AHUMADA | D35: 0487-2020 | E35: PAI WEB | F35: 03 FEBRERO DE 2020 | G35: 29 FEBRERO DE 2020 | H35: 1378000 | I35: 1378000 | J35: NILSA ARIZA MARQUEZ | K35: COORDINADOR P Y P | L35: CENTRO COSTA HERMOSA | M35: 583 | N35: 1214 | O35: 20/02/2020 | P35: https://www.contratos.gov.co/consultas/detalleProceso.do?numConstancia=20-4-10500107
A36: 34 | B36: 45496113 | C36: BEATRIZ HELENA JIMENO CARDENAS | D36: 0488-2020 | E36: AUXILIAR DE ARCHIVO | F36: 03 FEBRERO DE 2020 | G36: 29 FEBRERO DE 2020 | H36: 1500000 | I36: 1500000 | J36: SANDRA SANMARTIN | K36: SUB GERENTE ADMINISTRATIVO | M36: 584 | N36: 1215 | O36: 20/02/2020 | P36: https://www.contratos.gov.co/consultas/detalleProceso.do?numConstancia=20-4-10500219
A37: 35 | B37: 32780077 | C37: BELKIS BOSSIO ESCORCIA | D37: 0489-2020 | E37: MEDICO DE URGENCIA | F37: 03 FEBRERO DE 2020 | G37: 29 FEBRERO DE 2020 | H37: 2560000 | I37: 2560000 | J37: BETTY PERTUZ | K37: SUBGERENTE CIENTIFICO | L37: CIUDADELA METROPOLITANA | M37: 585 | N37: 1216 | O37: 20/02/2020 | P37: https://www.contratos.gov.co/consultas/detalleProceso.do?numConstancia=20-4-10500260
A38: 36 | B38: 32736237 | C38: BETTY ROMERO RODRIGUEZ | D38: 0490-2020 | E38: AUXILIAR SERVICIOS GENERALES URGENCIA | F38: 03 FEBRERO DE 2020 | G38: 29 FEBRERO DE 2020 | H38: 1378000 | I38: 1378000 | J38: WILFRAN JIMENEZ DE LA PEÑA | K38: COORD CENTRO SALUD | L38: CIUDADELA METROPOLITANA | M38: 586 | N38: 1217 | O38: 20/02/2020 | P38: https://www.contratos.gov.co/consultas/detalleProceso.do?numConstancia=20-4-10500345
A39: 37 | B39: 72153271 | C39: BORIS ARROYO ESCOBAR | D39: 0491-2020 | E39: ORIENTADOR | F39: 03 FEBRERO DE 2020 | G39: 29 FEBRERO DE 2020 | H39: 1270000 | I39: 1270000 | J39: LUIS GRANADOS GOMEZ | K39: COORD CENTRO SALUD | L39: CENTRO MANUELA BELTRAN | M39: 587 | N39: 1218 | O39: 20/02/2020 | P39: https://www.contratos.gov.co/consultas/detalleProceso.do?numConstancia=20-4-10500367
A40: 38 | B40: 7938572 | C40: BRAYNERD ALVAREZ JIMENEZ | D40: 0492-2020 | E40: MEDICO CONSULTA EXTERNA Y CARDIOVASCULAR | F40: 03 FEBRERO DE 2020 | G40: 29 FEBRERO DE 2020 | H40: 4600000 | I40: 4600000 | J40: YARELIS GUERRA CORREA | K40: COORD CENTRO SALUD | L40: CENTRO VILLA ESTADIO | M40: 588 | N40: 1219 | O40: 20/02/2020 | P40: https://www.contratos.gov.co/consultas/detalleProceso.do?numConstancia=20-4-10500953
A41: 39 | B41: 1042452163 | C41: BRENDA JULIETH GONZALEZ MEJIA | D41: 0493-2020 | E41: DIGITADOR | F41: 03 FEBRERO DE 2020 | G41: 29 FEBRERO DE 2020 | H41: 1600000 | I41: 1600000 | J41: MARIA SANCHEZ AYALA | K41: JEFE ALMACEN | L41: ARCHIVO CENTRAL | M41: 589 | N41: 1220 | O41: 20/02/2020 | P41: https://www.contratos.gov.co/consultas/detalleProceso.do?numConstancia=20-4-10500993
A42: 40 | B42: 1001875457 | C42: BRIGGITH CHARRIS ALGARIN | D42: 0494-2020 | E42: AUXILIAR DE ODONTOLOGIA | F42: 03 FEBRERO DE 2020 | G42: 29 FEBRERO DE 2020 | H42: 1166000 | I42: 1166000 | J42: WILFRAN JIMENEZ DE LA PEÑA | K42: COORD CENTRO SALUD | L42: CIUDADELA METROPOLITANA | M42: 590 | N42: 1221 | O42: 20/02/2020 | P42: https://www.contratos.gov.co/consultas/detalleProceso.do?numConstancia=20-4-10501051
A43: 41 | B43: 1042446319 | C43: BRUNYS DEL CARMEN RAMIREZ MUÑOZ | D43: 0495-2020 | E43: AUXILIAR DE ENFERMERIA PROMOTORA EN SALUD | F43: 03 FEBRERO DE 2020 | G43: 29 FEBRERO DE 2020 | H43: 1215000 | I43: 1215000 | J43: WILFRAN JIMENEZ DE LA PEÑA | K43: COORD CENTRO SALUD | L43: CIUDADELA METROPOLITANA | M43: 591 | N43: 1222 | O43: 20/02/2020 | P43: https://www.contratos.gov.co/consultas/detalleProceso.do?numConstancia=20-4-10501120
A44: 42 | B44: 1042449000 | C44: CARLOS ALFREDO MONTERROSA GOMEZ | D44: 0496-2020 | E44: PAI WEB | F44: 03 FEBRERO DE 2020 | G44: 29 FEBRERO DE 2020 | H44: 1270000 | I44: 1270000 | J44: NILSA ARIZA MARQUEZ | K44: COORDINADOR P Y P | L44: ARCHIVO CENTRAL | M44: 592 | N44: 1223 | O44: 20/02/2020 | P44: https://www.contratos.gov.co/consultas/detalleProceso.do?numConstancia=20-4-10501120
A45: 43 | B45: 72238499 | C45: CARLOS ANTONIO MATTOS MIRANDA | D45: 0497-2020 | E45: REFERENCIA Y CONTRAREFERENCIA | F45: 03 FEBRERO DE 2020 | G45: 29 FEBRERO DE 2020 | H45: 1480000 | I45: 1480000 | J45: WILFRAN JIMENEZ DE LA PEÑA | K45: COORD CENTRO SALUD | L45: CIUDADELA METROPOLITANA | M45: 593 | N45: 1224 | O45: 20/02/2020 | P45: https://www.contratos.gov.co/consultas/detalleProceso.do?numConstancia=20-4-10501188
A46: 44 | B46: 44158949 | C46: CARMEN PACHECO VARELA | D46: 0498-2020 | E46: AUXILIAR SERVICIOS GENERALES URGENCIA | F46: 03 FEBRERO DE 2020 | G46: 29 FEBRERO DE 2020 | H46: 1378000 | I46: 1378000 | J46: SERGIO BOVEA MARIN | K46: COORD CENTRO SALUD | L46: CENTRO DE 13 DE JUNIO | M46: 594 | N46: 1225 | O46: 20/02/2020 | P46: https://www.contratos.gov.co/consultas/detalleProceso.do?numConstancia=20-4-10501228
A47: 45 | B47: 32618430 | C47: CARMEN ROBLES DE LASCARRO | D47: 0499-2020 | E47: AUXILIAR SERVICIOS GENERALES URGENCIA | F47: 03 FEBRERO DE 2020 | G47: 29 FEBRERO DE 2020 | H47: 1378000 | I47: 1378000 | J47: WILFRAN JIMENEZ DE LA PEÑA | K47: COORD CENTRO SALUD | L47: CIUDADELA METROPOLITANA | M47: 595 | N47: 1226 | O47: 20/02/2020 | P47: https://www.contratos.gov.co/consultas/detalleProceso.do?numConstancia=20-4-10501348
A48: 46 | B48: 1069489915 | C48: CAROLINA RICARDO ALBA | D48: 0500-2020 | E48: AUXILIAR ADMINISTRATIVO - SUBGERENCIA ADMINISTRATIVA | F48: 03 FEBRERO DE 2020 | G48: 29 FEBRERO DE 2020 | H48: 1900000 | I48: 1900000 | J48: SANDRA SANMARTIN | K48: SUB GERENTE ADMINISTRATIVO | L48: COSTA HERMOSA | M48: 596 | N48: 1227 | O48: 20/02/2020 | P48: https://www.contratos.gov.co/consultas/detalleProceso.do?numConstancia=20-4-10501395
A49: 47 | B49: 32712485 | C49: CASILDA LARA SOLANO | D49: 0501-2020 | E49: MEDICO MATERNIDAD SEGURA | F49: 03 FEBRERO DE 2020 | G49: 29 FEBRERO DE 2020 | H49: 2120000 | I49: 2120000 | J49: SERGIO BOVEA MARIN | K49: COORD CENTRO SALUD | L49: CENTRO DE 13 DE JUNIO | M49: 597 | N49: 1228 | O49: 20/02/2020 | P49: https://www.contratos.gov.co/consultas/detalleProceso.do?numConstancia=20-4-10501495
A50: 48 | B50: 32861785 | C50: CATALINA MERCADO MARTINEZ | D50: 0502-2020 | E50: AUXILIAR DE FACTURACION | F50: 03 FEBRERO DE 2020 | G50: 29 FEBRERO DE 2020 | H50: 1300000 | I50: 1300000 | J50: SANDRA SANMARTIN | K50: SUB GERENTE ADMINISTRATIVO | L50: CENTRO SALAMANCA | M50: 598 | N50: 1229 | O50: 20/02/2020 | P50: https://www.contratos.gov.co/consultas/detalleProceso.do?numConstancia=20-4-10501520
A51: 49 | B51: 1143138226 | C51: CATTERINNE ESTEFANY ESTRADA CARDENAS | D51: 0503-2020 | E51: AUXILIAR DE FACTURACION URGENCIA | F51: 03 FEBRERO DE 2020 | G51: 29 FEBRERO DE 2020 | H51: 1400000 | I51: 1400000 | J51: SANDRA SANMARTIN | K51: SUB GERENTE ADMINISTRATIVO | L51: CENTRO COSTA HERMOSA | M51: 599 | N51: 1230 | O51: 20/02/2020 | P51: https://www.contratos.gov.co/consultas/detalleProceso.do?numConstancia=20-4-10501553
A52: 50 | B52: 8762035 | C52: CESAR AUGUSTO MERIÑO ESCORCIA | D52: 0504-2020 | E52: ORIENTADOR | F52: 03 FEBRERO DE 2020 | G52: 29 FEBRERO DE 2020 | H52: 1270000 | I52: 1270000 | J52: SANDRA SANMARTIN | K52: SUB GERENTE ADMINISTRATIVO | L52: CENTRO COSTA HERMOSA | M52: 600 | N52: 1231 | O52: 20/02/2020 | P52: https://www.contratos.gov.co/consultas/detalleProceso.do?numConstancia=20-4-10501595
A53: 51 | B53: 1001798325 | C53: CINDY MILENA SARMIENTO MERIÑO | D53: 0505-2020 | E53: PROFESIONA RELACIONES INETRNACIONALES | F53: 03 FEBRERO DE 2020 | G53: 29 FEBRERO DE 2020 | H53: 4000000 | I53: 4000000 | J53: FABIAN COLPAS | K53: JEFE RECUSOS HUMANOS | L53: ADMON COSTA HERMOSA | M53: 601 | N53: 1232 | O53: 20/02/2020 | P53: https://www.contratos.gov.co/consultas/detalleProceso.do?numConstancia=20-4-10501645
A54: 52 | B54: 1001875491 | C54: CINDY MILENA VARELA ARIAS | D54: 0506-2020 | E54: AUXILIAR SERVICIOS GENERALES | F54: 03 FEBRERO DE 2020 | G54: 29 FEBRERO DE 2020 | H54: 1215000 | I54: 1215000 | J54: LUIS GRANADOS GOMEZ | K54: COORD CENTRO SALUD | L54: CENTRO MANUELA BELTRAN | M54: 602 | N54: 1233 | O54: 20/02/2020 | P54: https://www.contratos.gov.co/consultas/detalleProceso.do?numConstancia=20-4-10501711
A55: 53 | B55: 1143116013 | C55: CLARA MENDOZA BETTER | D55: 0507-2020 | E55: PSICOLOGO EN PROMOCION Y PREVENCION | F55: 03 FEBRERO DE 2020 | G55: 29 FEBRERO DE 2020 | H55: 2800000 | I55: 2800000 | J55: DIANA MARTINEZ PACHECO | K55: COORD CENTRO DE SALUD | L55: CENTRO SALAMANCA | M55: 603 | N55: 1234 | O55: 20/02/2020 | P55: https://www.contratos.gov.co/consultas/detalleProceso.do?numConstancia=20-4-10501740
A56: 54 | B56: 1042418998 | C56: CLAUDIA AREVALO CERVANTES | D56: 0508-2020 | E56: ENFERMERA JEFE P Y P | F56: 03 FEBRERO DE 2020 | G56: 29 FEBRERO DE 2020 | H56: 2300000 | I56: 2300000 | J56: NILSA ARIZA MARQUEZ | K56: COORDINADOR P Y P | L56: CIUDADELA METROPOLITANA | M56: 604 | N56: 1235 | O56: 20/02/2020 | P56: https://www.contratos.gov.co/consultas/detalleProceso.do?numConstancia=20-4-10501772
A57: 55 | B57: 32866058 | C57: CLAUDIA CABARCAS ARROYO | D57: 0509-2020 | E57: TRABAJADORA SOCIAL | F57: 03 FEBRERO DE 2020 | G57: 29 FEBRERO DE 2020 | H57: 2200000 | I57: 2200000 | J57: DIANA MARTINEZ PACHECO | K57: COORD CENTRO DE SALUD | L57: CENTRO SALAMANCA | M57: 605 | N57: 1236 | O57: 20/02/2020 | P57: https://www.contratos.gov.co/consultas/detalleProceso.do?numConstancia=20-4-10501786
A58: 56 | B58: 32749353 | C58: CLAUDIA VALENCIA AGUDELO | D58: 0510-2020 | E58: AUXILIAR DE ENFERMERIA MATERNIDAD SEGURA | F58: 03 FEBRERO DE 2020 | G58: 29 FEBRERO DE 2020 | H58: 1166000 | I58: 1166000 | J58: WILFRAN JIMENEZ DE LA PEÑA | K58: COORD CENTRO SALUD | L58: CIUDADELA METROPOLITANA | M58: 606 | N58: 1237 | O58: 20/02/2020 | P58: https://www.contratos.gov.co/consultas/detalleProceso.do?numConstancia=20-4-10501824
A59: 57 | B59: 32818534 | C59: CONSUELO MENDOZA CASTRO | D59: 0511-2020 | E59: AUXILIAR DE ENFERMERIA MATERNIDAD SEGURA | F59: 03 FEBRERO DE 2020 | G59: 29 FEBRERO DE 2020 | H59: 1166000 | I59: 1166000 | J59: WILFRAN JIMENEZ DE LA PEÑA | K59: COORD CENTRO SALUD | L59: CIUDADELA METROPOLITANA | M59: 607 | N59: 1238 | O59: 20/02/2020 | P59: https://www.contratos.gov.co/consultas/detalleProceso.do?numConstancia=20-4-10501844
A60: 58 | B60: 72193875 | C60: CRISTIAN DE JESUS BARRAZA VILLALBA | D60: 0512-2020 | E60: CONDUCTOR DE AMBULANCIA | F60: 03 FEBRERO DE 2020 | G60: 29 FEBRERO DE 2020 | H60: 1800000 | I60: 1800000 | J60: BETTY PERTUZ | K60: SUBGERENTE CIENTIFICO | L60: CIUDADELA METROPOLITANA | M60: 608 | N60: 1239 | O60: 20/02/2020 | P60: https://www.contratos.gov.co/consultas/detalleProceso.do?numConstancia=20-4-10501866
A61: 59 | B61: 72436677 | C61: DANILO ENRIQUE GRAVINI DE LA HOZ | D61: 0513-2020 | E61: AUXILIAR DE ENFERMERIA URGENCIAS | F61: 03 FEBRERO DE 2020 | G61: 29 FEBRERO DE 2020 | H61: 1378000 | I61: 1378000 | J61: WILFRAN JIMENEZ DE LA PEÑA | K61: COORD CENTRO SALUD | L61: CIUDADELA METROPOLITANA | M61: 609 | N61: 1240 | O61: 20/02/2020 | P61: https://www.contratos.gov.co/consultas/detalleProceso.do?numConstancia=20-4-10504504
A62: 60 | B62: 1042442558 | C62: DANISA PAOLA BARRIOS DE ALBA | D62: 0514-2020 | E62: NUTRICIONISTA | F62: 03 FEBRERO DE 2020 | G62: 29 FEBRERO DE 2020 | H62: 2300000 | I62: 2300000 | J62: DIANA MARTINEZ PACHECO | K62: COORD CENTRO DE SALUD | L62: CENTRO SALAMANCA | M62: 610 | N62: 1241 | O62: 20/02/2020 | P62: https://www.contratos.gov.co/consultas/detalleProceso.do?numConstancia=20-4-10504547
A63: 61 | B63: 1045234352 | C63: DARIANA MARCELA ROMERO CASTELLANOS | D63: 0515-2020 | E63: MEDICO MATERNIDAD SEGURA | F63: 03 FEBRERO DE 2020 | G63: 29 FEBRERO DE 2020 | H63: 2120000 | I63: 2120000 | J63: WILFRAN JIMENEZ DE LA PEÑA | K63: COORD CENTRO SALUD | L63: CIUDADELA METROPOLITANA | M63: 611 | N63: 1242 | O63: 20/02/2020 | P63: https://www.contratos.gov.co/consultas/detalleProceso.do?numConstancia=20-4-10504587
A64: 62 | B64: 1143439595 | C64: DAYANA PAOLA OTALORA AMAYA | D64: 0516-2020 | E64: PAI WEB | F64: 03 FEBRERO DE 2020 | G64: 29 FEBRERO DE 2020 | H64: 1400000 | I64: 1400000 | J64: NILSA ARIZA MARQUEZ | K64: COORDINADOR P Y P | L64: ARCHIVO CENTRAL | M64: 612 | N64: 1243 | O64: 20/02/2020 | P64: https://www.contratos.gov.co/consultas/detalleProceso.do?numConstancia=20-4-10504608
A65: 63 | B65: 1042436934 | C65: DAYANA PAOLA TORRES SOLANO | D65: 0517-2020 | E65: MEDICO DE URGENCIA | F65: 03 FEBRERO DE 2020 | G65: 29 FEBRERO DE 2020 | H65: =2560000+2120000/2 -> 3620000 | I65: 3620000 | J65: BETTY PERTUZ | K65: SUBGERENTE CIENTIFICO | L65: CIUDADELA METROPOLITANA | M65: 613 | N65: 1244 | O65: 20/02/2020 | P65: https://www.contratos.gov.co/consultas/detalleProceso.do?numConstancia=20-4-10504636
A66: 64 | B66: 1047434688 | C66: DAYRA ALEJANDRA COLON BLANCO | D66: 0518-2020 | E66: MEDICO DE URGENCIA | F66: 03 FEBRERO DE 2020 | G66: 29 FEBRERO DE 2020 | H66: 2560000 | I66: =H66*1 -> 2560000 | J66: BETTY PERTUZ | K66: SUBGERENTE CIENTIFICO | L66: CENTRO DE 13 DE JUNIO | M66: 614 | N66: 1245 | O66: 20/02/2020 | P66: https://www.contratos.gov.co/consultas/detalleProceso.do?numConstancia=20-4-10504656
A67: 65 | B67: 1042436213 | C67: DESIRET PAOLA PINTO NARVAEZ | D67: 0519-2020 | E67: ENFERMERA JEFE URGENCIAS | F67: 03 FEBRERO DE 2020 | G67: 29 FEBRERO DE 2020 | H67: 1900000 | I67: 1900000 | J67: BETTY PERTUZ | K67: SUBGERENTE CIENTIFICO | L67: CIUDADELA METROPOLITANA | M67: 615 | N67: 1246 | O67: 20/02/2020 | P67: https://www.contratos.gov.co/consultas/detalleProceso.do?numConstancia=20-4-10504668
A68: 66 | B68: 1082405551 | C68: DESIRETH ESTRADA FERNANDEZ | D68: 0520-2020 | E68: ENFERMERA JEFE P Y P | F68: 03 FEBRERO DE 2020 | G68: 29 FEBRERO DE 2020 | H68: 2300000 | I68: 2300000 | J68: NILSA ARIZA MARQUEZ | K68: COORDINADOR P Y P | L68: CENTRO DE 13 DE JUNIO | M68: 616 | N68: 1247 | O68: 20/02/2020 | P68: https://www.contratos.gov.co/consultas/detalleProceso.do?numConstancia=20-4-10504689
A69: =+A68+1 -> 67 | B69: 22524112 | C69: DIANA SANDOVAL MANGA | D69: 0521-2020 | E69: ENFERMERA JEFE PROGRAMAS ESPECIALES | F69: 03 FEBRERO DE 2020 | G69: 29 FEBRERO DE 2020 | H69: 1900000 | I69: 1900000 | J69: LUIS CARLOS DE LEON BERNIER | K69: COORD CENTRO SALUD | L69: CENTRO MACLOVIA | M69: 617 | N69: 1248 | O69: 20/02/2020 | P69: https://www.contratos.gov.co/consultas/detalleProceso.do?numConstancia=20-4-10505064
A70: 68 | B70: 1052949649 | C70: DILIANA GARCIA JIMENEZ | D70: 0522-2020 | E70: ENFERMERA JEFE URGENCIAS | F70: 03 FEBRERO DE 2020 | G70: 29 FEBRERO DE 2020 | H70: 1900000 | I70: 1900000 | J70: WILFRAN JIMENEZ DE LA PEÑA | K70: COORD CENTRO SALUD | L70: CIUDADELA METROPOLITANA | M70: 618 | N70: 1249 | O70: 20/02/2020 | P70: https://www.contratos.gov.co/consultas/detalleProceso.do?numConstancia=20-4-10505074
A71: 69 | B71: 32818082 | C71: DIVINA LUZ NIETO ZAMBRANO | D71: 0523-2020 | E71: AUXILIAR SERVICIOS GENERALES URGENCIA | F71: 03 FEBRERO DE 2020 | G71: 29 FEBRERO DE 2020 | H71: 1378000 | I71: 1378000 | J71: SERGIO BOVEA MARIN | K71: COORD CENTRO SALUD | L71: CENTRO DE 13 DE JUNIO | M71: 619 | N71: 1250 | O71: 20/02/2020 | P71: https://www.contratos.gov.co/consultas/detalleProceso.do?numConstancia=20-4-10505084
A72: 70 | B72: 32819600 | C72: DOLIS PEDROZO TORRES | D72: 0524-2020 | E72: AUXILIAR SERVICIOS GENERALES | F72: 03 FEBRERO DE 2020 | G72: 29 FEBRERO DE 2020 | H72: 1215000 | I72: 1215000 | J72: LUIS GRANADOS GOMEZ | K72: COORD CENTRO SALUD | L72: CENTRO MANUELA BELTRAN | M72: 620 | N72: 1251 | O72: 20/02/2020 | P72: https://www.contratos.gov.co/consultas/detalleProceso.do?numConstancia=20-4-10505107
A73: 71 | B73: 1043142073 | C73: DORALIZ ECHEVERRI PEREZ | D73: 0525-2020 | E73: GESTION DOCUMENTAL | F73: 03 FEBRERO DE 2020 | G73: 29 FEBRERO DE 2020 | H73: 1500000 | I73: 1500000 | J73: FABIAN COLPAS | K73: JEFE TALENTO HUMANO | L73: ADMON COSTA HERMOSA | M73: 621 | N73: 1252 | O73: 20/02/2020 | P73: https://www.contratos.gov.co/consultas/detalleProceso.do?numConstancia=20-4-10505147
A74: 72 | B74: 55222167 | C74: DREY FLOREZ TORRES | D74: 0526-2020 | E74: PAI WEB | F74: 03 FEBRERO DE 2020 | G74: 29 FEBRERO DE 2020 | H74: 1500000 | I74: 1500000 | J74: NILSA ARIZA MARQUEZ | K74: COORDINADOR P Y P | L74: ARCHIVO CENTRAL | M74: 622 | N74: 1253 | O74: 20/02/2020 | P74: https://www.contratos.gov.co/consultas/detalleProceso.do?numConstancia=20-4-10505156
A75: 73 | B75: 8735248 | C75: EDGAR CERVANTES MELGAREJO | D75: 0527-2020 | E75: MEDICO P Y P | F75: 03 FEBRERO DE 2020 | G75: 29 FEBRERO DE 2020 | H75: 2120000 | I75: 2120000 | J75: WILFRAN JIMENEZ DE LA PEÑA | K75: COORD CENTRO SALUD | L75: CIUDADELA METROPOLITANA | M75: 623 | N75: 1254 | O75: 20/02/2020 | P75: https://www.contratos.gov.co/consultas/detalleProceso.do?numConstancia=20-4-10505171
A76: 74 | B76: 78302933 | C76: EDIE JAIR GIL | D76: 0528-2020 | E76: TECNOLOGO EN RADIOLOGIA | F76: 03 FEBRERO DE 2020 | G76: 29 FEBRERO DE 2020 | H76: 1500000 | I76: 1500000 | J76: WILFRAN JIMENEZ DE LA PEÑA | K76: COORD CENTRO SALUD | L76: CIUDADELA METROPOLITANA | M76: 624 | N76: 1255 | O76: 20/02/2020 | P76: https://www.contratos.gov.co/consultas/detalleProceso.do?numConstancia=20-4-10505188
A77: 75 | B77: 1045700355 | C77: EDUARDO LUIS PAUTH HERNANDEZ | D77: 0529-2020 | E77: MEDICO CONSULTA EXTERNA | F77: 03 FEBRERO DE 2020 | G77: 29 FEBRERO DE 2020 | H77: 3180000 | I77: 3180000 | J77: AIX PALACIO | K77: COORD CENTRO DE SALUD | L77: CENTRO DE SALUD EL PARQUE | M77: 625 | N77: 1256 | O77: 20/02/2020 | P77: https://www.contratos.gov.co/consultas/detalleProceso.do?numConstancia=20-4-10505217
A78: 76 | B78: 8734956 | C78: EFRAIN CANTILLO GUERRERO | D78: 0530-2020 | E78: CONDUCTOR DE AMBULANCIA | F78: 03 FEBRERO DE 2020 | G78: 29 FEBRERO DE 2020 | H78: 1800000 | I78: 1800000 | J78: BETTY PERTUZ | K78: SUBGERENTE CIENTIFICO | L78: CENTRO DE 13 DE JUNIO | M78: 626 | N78: 1257 | O78: 20/02/2020 | P78: https://www.contratos.gov.co/consultas/detalleProceso.do?numConstancia=20-4-10505227
A79: 77 | B79: 8750161 | C79: EFRAIN DE LA HOZ ROCHEL | D79: 0531-2020 | E79: MEDICO DE URGENCIA | F79: 03 FEBRERO DE 2020 | G79: 29 FEBRERO DE 2020 | H79: 2560000 | I79: 2560000 | J79: BETTY PERTUZ | K79: SUBGERENTE CIENTIFICO | L79: CENTRO DE 13 DE JUNIO | M79: 627 | N79: 1258 | O79: 20/02/2020 | P79: https://www.contratos.gov.co/consultas/detalleProceso.do?numConstancia=20-4-10505241
A80: 78 | B80: 1045675420 | C80: EIBANIA MOLINA VENERA | D80: 0532-2020 | E80: AUXILIAR DE ENFERMERIA URGENCIAS | F80: 03 FEBRERO DE 2020 | G80: 29 FEBRERO DE 2020 | H80: 1378000 | I80: 1378000 | J80: WILFRAN JIMENEZ DE LA PEÑA | K80: COORD CENTRO SALUD | L80: CIUDADELA METROPOLITANA | M80: 628 | N80: 1259 | O80: 20/02/2020 | P80: https://www.contratos.gov.co/consultas/detalleProceso.do?numConstancia=20-4-10505252
A81: 79 | B81: 32651025 | C81: ELEISE SINING CUJIA | D81: 0533-2020 | E81: GESTION DOCUMENTAL | F81: 03 FEBRERO DE 2020 | G81: 29 FEBRERO DE 2020 | H81: 1500000 | I81: 1500000 | J81: FABIAN COLPAS | K81: JEFE TALENTO HUMANO | L81: ADMON COSTA HERMOSA | M81: 629 | N81: 1260 | O81: 20/02/2020 | P81: https://www.contratos.gov.co/consultas/detalleProceso.do?numConstancia=20-4-10505292
A82: 80 | B82: 22570149 | C82: ELENA BAENA PEÑA | D82: 0534-2020 | E82: AUXILIAR DE FACTURACION URGENCIA | F82: 03 FEBRERO DE 2020 | G82: 29 FEBRERO DE 2020 | H82: 1400000 | I82: 1400000 | J82: SANDRA SANMARTIN | K82: SUB GERENTE ADMINISTRATIVO | L82: CENTRO COSTA HERMOSA | M82: 630 | N82: 1261 | O82: 20/02/2020 | P82: https://www.contratos.gov.co/consultas/detalleProceso.do?numConstancia=20-4-10505301
A83: 81 | B83: 32772038 | C83: ELIANA BEATRIZ ABRIL DE LA ROSA | D83: 0535-2020 | E83: AUXILIAR ADMINISTRATIVO - RECURSOS HUMANOS | F83: 03 FEBRERO DE 2020 | G83: 29 FEBRERO DE 2020 | H83: 1900000 | I83: 1900000 | J83: FABIAN COLPAS | K83: JEFE TALENTO HUMANO | L83: ADMON COSTA HERMOSA | M83: 631 | N83: 1262 | O83: 20/02/2020 | P83: https://www.contratos.gov.co/consultas/detalleProceso.do?numConstancia=20-4-10505320
A84: 82 | B84: 32787164 | C84: ELIANA CONSTANZA ARTETA HOYOS | D84: 0536-2020 | E84: CONTADOR | F84: 03 FEBRERO DE 2020 | G84: 29 FEBRERO DE 2020 | H84: 3000000 | I84: 3000000 | J84: SANDRA SANMARTIN | K84: SUB GERENTE ADMINISTRATIVO | L84: CENTRO COSTA HERMOSA | M84: 632 | N84: 1263 | O84: 20/02/2020 | P84: https://www.contratos.gov.co/consultas/detalleProceso.do?numConstancia=20-4-10505330
A85: 83 | B85: 8762665 | C85: ELIECER DE JESUS CALLE QUINTERO | D85: 0537-2020 | E85: TECNICO ALMACEN | F85: 03 FEBRERO DE 2020 | G85: 29 FEBRERO DE 2020 | H85: 1900000 | I85: 1900000 | J85: MARIA SANCHEZ AYALA | K85: JEFE ALMACEN | L85: ARCHIVO CENTRAL | M85: 633 | N85: 1264 | O85: 20/02/2020 | P85: https://www.contratos.gov.co/consultas/detalleProceso.do?numConstancia=20-4-10505344
A86: 84 | B86: 8633055 | C86: ELIECER POLO CASTRO | D86: 0538-2020 | E86: ABOGADO EXTERNO | F86: 03 FEBRERO DE 2020 | G86: 29 FEBRERO DE 2020 | H86: 5800000 | I86: 5800000 | J86: ORNELLA FIORENTINO | K86: JEFE OFICINA JURIDICA | L86: CENTRO COSTA HERMOSA | M86: 634 | N86: 1265 | O86: 20/02/2020 | P86: https://www.contratos.gov.co/consultas/detalleProceso.do?numConstancia=20-4-10505381
A87: 85 | B87: 1045751778 | C87: SERGIO ANDRES IFANZON CASTRO | D87: 0539-2020 | E87: ASESOR | F87: 03 FEBRERO DE 2020 | G87: 29 FEBRERO DE 2020 | H87: 5800000 | I87: 5800000 | J87: ROSA MADERA | K87: GERENTE | L87: ADMON COSTA HERMOSA | M87: 635 | N87: 1266 | O87: 20/02/2020 | P87: https://www.contratos.gov.co/consultas/detalleProceso.do?numConstancia=20-4-10505392
A88: 86 | B88: 32871139 | C88: ELLA VIZCAINO SENIOR | D88: 0540-2020 | E88: ENFERMERA JEFE | F88: 03 FEBRERO DE 2020 | G88: 29 FEBRERO DE 2020 | H88: 2300000 | I88: 2300000 | J88: NILSA ARIZA MARQUEZ | K88: COORDINADOR P Y P | L88: CIUDADELA METROPOLITANA | M88: 636 | N88: 1267 | O88: 20/02/2020 | P88: https://www.contratos.gov.co/consultas/detalleProceso.do?numConstancia=20-4-10505406
A89: 87 | B89: 32583401 | C89: ELSY LIZETH CHARRIS CONTRERAS | D89: 0541-2020 | E89: MEDICO CONSULTA EXTERNA | F89: 03 FEBRERO DE 2020 | G89: 29 FEBRERO DE 2020 | H89: 2120000 | I89: 2120000 | J89: AIX PALACIO | K89: COORD CENTRO DE SALUD | L89: CENTRO DE SALUD EL PARQUE | M89: 637 | N89: 1268 | O89: 20/02/2020 | P89: https://www.contratos.gov.co/consultas/detalleProceso.do?numConstancia=20-4-10505549
A90: 88 | B90: 1042436156 | C90: EMELY ESCORCIA MARTINEZ | D90: 0542-2020 | E90: ENFERMERA JEFE URGENCIAS | F90: 03 FEBRERO DE 2020 | G90: 29 FEBRERO DE 2020 | H90: 1900000 | I90: 1900000 | J90: SERGIO BOVEA MARIN | K90: COORD CENTRO SALUD | L90: CENTRO DE 13 DE JUNIO | M90: 638 | N90: 1269 | O90: 20/02/2020 | P90: https://www.contratos.gov.co/consultas/detalleProceso.do?numConstancia=20-4-10505568
A91: 89 | B91: 22693401 | C91: EMILIA ANTONIA BARCELO DE PARRA | D91: 0543-2020 | E91: AUXILIAR SERVICIOS GENERALES URGENCIA | F91: 03 FEBRERO DE 2020 | G91: 29 FEBRERO DE 2020 | H91: 1378000 | I91: 1378000 | J91: SERGIO BOVEA MARIN | K91: COORD CENTRO SALUD | L91: CENTRO DE 13 DE JUNIO | M91: 639 | N91: 1270 | O91: 20/02/2020 | P91: https://www.contratos.gov.co/consultas/detalleProceso.do?numConstancia=20-4-10505610
A92: 90 | B92: 1140831753 | C92: ENNY CAROLINA ROCHA HERNANDEZ | D92: 0544-2020 | E92: ABOGADO EXTERNO | F92: 03 FEBRERO DE 2020 | G92: 29 FEBRERO DE 2020 | H92: 5000000 | I92: 5000000 | J92: ORNELLA FIORENTINO | K92: JEFE OFICINA JURIDICA | L92: CENTRO COSTA HERMOSA | M92: 640 | N92: 1271 | O92: 20/02/2020 | P92: https://www.contratos.gov.co/consultas/detalleProceso.do?numConstancia=20-4-10505721
A93: 91 | B93: 8718276 | C93: ENRIQUE PACHECO PACHECO | D93: 0545-2020 | E93: MEDICO DE URGENCIA | F93: 03 FEBRERO DE 2020 | G93: 29 FEBRERO DE 2020 | H93: 2560000 | I93: 2560000 | J93: BETTY PERTUZ | K93: SUBGERENTE CIENTIFICO | L93: CENTRO DE 13 DE JUNIO | M93: 641 | N93: 1272 | O93: 20/02/2020 | P93: https://www.contratos.gov.co/consultas/detalleProceso.do?numConstancia=20-4-10505740
A94: 92 | B94: 32866006 | C94: ERIKA ASCENCIO MARQUEZ | D94: 0546-2020 | E94: AUXILIAR ADMINISTRATIVO | F94: 03 FEBRERO DE 2020 | G94: 29 FEBRERO DE 2020 | H94: 3500000 | I94: 3500000 | J94: ORNELLA FIORENTINO | K94: JEFE OFICINA JURIDICA | L94: CENTRO COSTA HERMOSA | M94: 642 | N94: 1273 | O94: 20/02/2020 | P94: https://www.contratos.gov.co/consultas/detalleProceso.do?numConstancia=20-4-10506074
A95: 93 | B95: 1143147791 | C95: ERNESTO JUNIOR ROJANO MEZA | D95: 0547-2020 | E95: TECNOLOGO EN RADIOLOGIA | F95: 03 FEBRERO DE 2020 | G95: 29 FEBRERO DE 2020 | H95: 1500000 | I95: 1500000 | J95: WILFRAN JIMENEZ DE LA PEÑA | K95: COORD CENTRO SALUD | L95: CIUDADELA METROPOLITANA | M95: 643 | N95: 1274 | O95: 20/02/2020 | P95: https://www.contratos.gov.co/consultas/detalleProceso.do?numConstancia=20-4-10506206
A96: 94 | B96: 1052970236 | C96: ESKARLY MARIA ACOSTA ALVARADO | D96: 0548-2020 | E96: PSICOLOGO | F96: 03 FEBRERO DE 2020 | G96: 29 FEBRERO DE 2020 | H96: 3000000 | I96: 3000000 | J96: FABIAN COLPAS | K96: JEFE TALENTO HUMANO | L96: ADMON COSTA HERMOSA | M96: 644 | N96: 1275 | O96: 20/02/2020 | P96: https://www.contratos.gov.co/consultas/detalleProceso.do?numConstancia=20-4-10507215
A97: 95 | B97: 22732766 | C97: ESMIRIS MARIA JIMENEZ GOMEZ | D97: 0549-2020 | E97: AUXILIAR SERVICIOS GENERALES | F97: 03 FEBRERO DE 2020 | G97: 29 FEBRERO DE 2020 | H97: 1215000 | I97: 1215000 | J97: YARELIS GUERRA CORREA | K97: COORD CENTRO SALUD | L97: CENTRO VILLA ESTADIO | M97: 645 | N97: 1276 | O97: 20/02/2020 | P97: https://www.contratos.gov.co/consultas/detalleProceso.do?numConstancia=20-4-10507311
A98: 96 | B98: 32821813 | C98: ESPERANZA OROZCO MORENO | D98: 0550-2020 | E98: AUXILIAR DE ENFERMERIA URGENCIAS | F98: 03 FEBRERO DE 2020 | G98: 29 FEBRERO DE 2020 | H98: 1378000 | I98: =H98*1 -> 1378000 | J98: SERGIO BOVEA MARIN | K98: COORD CENTRO SALUD | L98: CENTRO DE 13 DE JUNIO | M98: 646 | N98: 1277 | O98: 20/02/2020 | P98: https://www.contratos.gov.co/consultas/detalleProceso.do?numConstancia=20-4-10507353
A99: 97 | B99: 44157204 | C99: ESTHER CECILIA SOLANO BARROS | D99: 0551-2020 | E99: MEDICO DE URGENCIA | F99: 03 FEBRERO DE 2020 | G99: 29 FEBRERO DE 2020 | H99: 2560000 | I99: 2560000 | J99: BETTY PERTUZ | K99: SUBGERENTE CIENTIFICO | L99: CIUDADELA METROPOLITANA | M99: 647 | N99: 1278 | O99: 20/02/2020 | P99: https://www.contratos.gov.co/consultas/detalleProceso.do?numConstancia=20-4-10507469
A100: 98 | B100: 44150678 | C100: EUCARIS DEL CARMEN RAMBAO NIEBLES | D100: 0552-2020 | E100: MEDICO CONSULTA EXTERNA | F100: 03 FEBRERO DE 2020 | G100: 29 FEBRERO DE 2020 | H100: 2120000 | I100: 2120000 | J100: AIX PALACIO | K100: COORD CENTRO DE SALUD | L100: CENTRO DE SALUD EL PARQUE | M100: 648 | N100: 1279 | O100: 20/02/2020 | P100: https://www.contratos.gov.co/consultas/detalleProceso.do?numConstancia=20-4-10507510
A101: 99 | B101: 60311278 | C101: EVA FLOREZ PARRA | D101: 0553-2020 | E101: MÉDICO CONSULTA EXTERNA Y APOYO A LA COORDINACIÓN MÉDICA | F101: 03 FEBRERO DE 2020 | G101: 29 FEBRERO DE 2020 | H101: 4640000 | I101: 4640000 | J101: VICTOR MIRANDA | K101: SUBGERENTE CIENTIFICO | L101: LA ESPERANZA | M101: 649 | N101: 1280 | O101: 20/02/2020 | P101: https://www.contratos.gov.co/consultas/detalleProceso.do?numConstancia=20-4-10507565
A102: 100 | B102: 32583911 | C102: EVA ISABEL ROSALES NAVARRO | D102: 0554-2020 | E102: ASESOR GERENCIA | F102: 03 FEBRERO DE 2020 | G102: 29 FEBRERO DE 2020 | H102: 5000000 | I102: 5000000 | J102: ROSA MADERA | K102: GERENTE | L102: ADMON COSTA HERMOSA | M102: 650 | N102: 1281 | O102: 20/02/2020 | P102: https://www.contratos.gov.co/consultas/detalleProceso.do?numConstancia=20-4-10507584
A103: 101 | B103: 1074712390 | C103: EVELIN CRISTINA ZULETA SANCHEZ | D103: 0555-2020 | E103: ENFERMERA JEFE P Y P | F103: 03 FEBRERO DE 2020 | G103: 29 FEBRERO DE 2020 | H103: 2300000 | I103: 2300000 | J103: NILSA ARIZA MARQUEZ | K103: COORDINADOR P Y P | L103: MANUELA BELTRAN | M103: 651 | N103: 1282 | O103: 20/02/2020 | P103: https://www.contratos.gov.co/consultas/detalleProceso.do?numConstancia=20-4-10507596
A104: 102 | B104: 32789239 | C104: MARIA DEL CARMEN GUERRERO OJEDA | D104: 0556-2020 | E104: ORIENTADOR | F104: 03 FEBRERO DE 2020 | G104: 29 FEBRERO DE 2020 | H104: 1270000 | I104: 1270000 | J104: SERGIO BOVEA MARIN | K104: COORD CENTRO SALUD | L104: CENTRO DE 13 DE JUNIO | M104: 652 | N104: 1283 | O104: 20/02/2020 | P104: https://www.contratos.gov.co/consultas/detalleProceso.do?numConstancia=20-4-10507638
A105: 103 | B105: 72170268 | C105: FABIAN FERNANDO MERCADO | D105: 0557-2020 | E105: PAI WEB | F105: 03 FEBRERO DE 2020 | G105: 29 FEBRERO DE 2020 | H105: 1270000 | I105: 1270000 | J105: NILSA ARIZA MARQUEZ | K105: COORDINADOR P Y P | L105: ARCHIVO CENTRAL | M105: 653 | N105: 1284 | O105: 20/02/2020 | P105: https://www.contratos.gov.co/consultas/detalleProceso.do?numConstancia=20-4-10507655
A106: 104 | B106: 8705578 | C106: FERMIN NAVARRO STEFANELL | D106: 0558-2020 | E106: GINECOLOGO | F106: 03 FEBRERO DE 2020 | G106: 29 FEBRERO DE 2020 | H106: 6000000 | I106: 6000000 | J106: NILSA ARIZA MARQUEZ | K106: COORDINADOR P Y P | L106: CIUDADELA METROPOLITANA | M106: 654 | N106: 1285 | O106: 20/02/2020 | P106: https://www.contratos.gov.co/consultas/detalleProceso.do?numConstancia=20-4-10507672
A107: 105 | B107: 1129520650 | C107: FERNANDO LUIS CERA DIAZ | D107: 0559-2020 | E107: MEDICO DE URGENCIA | F107: 03 FEBRERO DE 2020 | G107: 29 FEBRERO DE 2020 | H107: 2560000 | I107: 2560000 | J107: WILFRAN JIMENEZ DE LA PEÑA | K107: COORD CENTRO SALUD | L107: CIUDADELA METROPOLITANA | M107: 655 | N107: 1286 | O107: 20/02/2020 | P107: https://www.contratos.gov.co/consultas/detalleProceso.do?numConstancia=20-4-10507682
A108: 106 | B108: 44159527 | C108: FLORINDA DE LA HOZ PACHECO | D108: 0560-2020 | E108: ENFERMERA JEFE P Y P | F108: 03 FEBRERO DE 2020 | G108: 29 FEBRERO DE 2020 | H108: 2300000 | I108: 2300000 | J108: NILSA ARIZA MARQUEZ | K108: COORDINADOR P Y P | L108: VILLA ESTADIO | M108: 656 | N108: 1287 | O108: 20/02/2020 | P108: https://www.contratos.gov.co/consultas/detalleProceso.do?numConstancia=20-4-10507694
A109: 107 | B109: 8507198 | C109: FRANCISCO PEÑALOZA PEREZ | D109: 0561-2020 | E109: MEDICO CONSULTA EXTERNA | F109: 03 FEBRERO DE 2020 | G109: 29 FEBRERO DE 2020 | H109: 2120000 | I109: 2120000 | J109: AIX PALACIO | K109: COORD CENTRO DE SALUD | L109: CENTRO DE SALUD EL PARQUE | M109: 657 | N109: 1288 | O109: 20/02/2020 | P109: https://www.contratos.gov.co/consultas/detalleProceso.do?numConstancia=20-4-10507705
A110: 108 | B110: 8750355 | C110: FREDDY BARCELO DONADO | D110: 0562-2020 | E110: AUXILIAR DE ARCHIVO | F110: 03 FEBRERO DE 2020 | G110: 29 FEBRERO DE 2020 | H110: 1500000 | I110: 1500000 | J110: SANDRA SANMARTIN | K110: SUB GERENTE ADMINISTRATIVO | L110: ADMON COSTA HERMOSA | M110: 658 | N110: 1289 | O110: 20/02/2020 | P110: https://www.contratos.gov.co/consultas/detalleProceso.do?numConstancia=20-4-10507771
A111: 109 | B111: 9132998 | C111: GABRIEL ARIAS RAMIREZ | D111: 0563-2020 | E111: QUIMICO FARMACEUTICO | F111: 03 FEBRERO DE 2020 | G111: 29 FEBRERO DE 2020 | H111: 3000000 | I111: 3000000 | J111: BETTY PERTUZ | K111: SUBGERENTE CIENTIFICO | L111: ADMON -FARMACIA | M111: 659 | N111: 1290 | O111: 20/02/2020 | P111: https://www.contratos.gov.co/consultas/detalleProceso.do?numConstancia=20-4-10507802
A112: 110 | B112: 32756610 | C112: GENNY GUZMAN NAVARRO | D112: 0564-2020 | E112: MEDICO DE URGENCIA | F112: 03 FEBRERO DE 2020 | G112: 29 FEBRERO DE 2020 | H112: 2560000 | I112: 2560000 | J112: BETTY PERTUZ | K112: SUBGERENTE CIENTIFICO | L112: CIUDADELA METROPOLITANA | M112: 660 | N112: 1291 | O112: 20/02/2020 | P112: https://www.contratos.gov.co/consultas/detalleProceso.do?numConstancia=20-4-10507840
A113: 111 | B113: 72003862 | C113: GERARDO ARTURO CABALLERO ARIZA | D113: 0565-2020 | E113: ABOGADO EXTERNO | F113: 03 FEBRERO DE 2020 | G113: 29 FEBRERO DE 2020 | H113: 5800000 | I113: 5800000 | J113: ORNELLA FIORENTINO | K113: JEFE OFICINA JURIDICA | L113: CENTRO COSTA HERMOSA | M113: 661 | N113: 1292 | O113: 20/02/2020 | P113: https://www.contratos.gov.co/consultas/detalleProceso.do?numConstancia=20-4-10507867
A114: 112 | B114: 1042448518 | C114: GIANINA ANDREA GRAVINI DE LA HOZ | D114: 0566-2020 | E114: MEDICO DE URGENCIA | F114: 03 FEBRERO DE 2020 | G114: 29 FEBRERO DE 2020 | H114: 2560000 | I114: 2560000 | J114: BETTY PERTUZ | K114: SUBGERENTE CIENTIFICO | L114: CENTRO DE 13 DE JUNIO | M114: 662 | N114: 1293 | O114: 20/02/2020 | P114: https://www.contratos.gov.co/consultas/detalleProceso.do?numConstancia=20-4-10507892
A115: 113 | B115: 1043133060 | C115: GINNA AGUILAR ANDRADE | D115: 0567-2020 | E115: AUXILIAR DE ENFERMERIA URGENCIAS | F115: 03 FEBRERO DE 2020 | G115: 29 FEBRERO DE 2020 | H115: 1378000 | I115: 1378000 | J115: SERGIO BOVEA MARIN | K115: COORD CENTRO SALUD | L115: CENTRO DE 13 DE JUNIO | M115: 663 | N115: 1294 | O115: 20/02/2020 | P115: https://www.contratos.gov.co/consultas/detalleProceso.do?numConstancia=20-4-10507906
A116: 114 | B116: 1042448135 | C116: GISELLA CAMILA ACOSTA SEGURA | D116: 0568-2020 | E116: SERVICIOS AMIGABLES | F116: 03 FEBRERO DE 2020 | G116: 29 FEBRERO DE 2020 | H116: 1500000 | I116: 1500000 | J116: LUIS GRANADOS GOMEZ | K116: COORD CENTRO SALUD | L116: CENTRO MANUELA BELTRAN | M116: 664 | N116: 1295 | O116: 20/02/2020 | P116: https://www.contratos.gov.co/consultas/detalleProceso.do?numConstancia=20-4-10507924
A117: 115 | B117: 44156926 | C117: GLADYS CECILIA ESCALANTE FERRER | D117: 0569-2020 | E117: ODONTOLOGO | F117: 03 FEBRERO DE 2020 | G117: 29 FEBRERO DE 2020 | H117: 1900000 | I117: 1900000 | J117: DIANA MARTINEZ PACHECO | K117: COORD CENTRO DE SALUD | L117: CENTRO SALAMANCA | M117: 665 | N117: 1296 | O117: 20/02/2020 | P117: https://www.contratos.gov.co/consultas/detalleProceso.do?numConstancia=20-4-10507965
A118: 116 | B118: 49555306 | C118: GLADYS DIAZ MARIN | D118: 0570-2020 | E118: AUXILIAR DE FACTURACION URGENCIA | F118: 03 FEBRERO DE 2020 | G118: 29 FEBRERO DE 2020 | H118: 1400000 | I118: 1400000 | J118: SANDRA SANMARTIN | K118: SUB GERENTE ADMINISTRATIVO | L118: CENTRO COSTA HERMOSA | M118: 666 | N118: 1297 | O118: 20/02/2020 | P118: https://www.contratos.gov.co/consultas/detalleProceso.do?numConstancia=20-4-10508008
A119: 117 | B119: 24341220 | C119: GLADYS OTALVARO BOTERO | D119: 0571-2020 | E119: AGENTE CALL CENTER | F119: 03 FEBRERO DE 2020 | G119: 29 FEBRERO DE 2020 | H119: 1378000 | I119: 1378000 | J119: BETTY PERTUZ | K119: SUBGERENTE CIENTIFICO | L119: COLL-CENTER- CIUDADELA METROPOLITANA | M119: 667 | N119: 1298 | O119: 20/02/2020 | P119: https://www.contratos.gov.co/consultas/detalleProceso.do?numConstancia=20-4-10508142
A120: 118 | B120: 22644596 | C120: GRACIELA BUSTOS RIVEROS | D120: 0572-2020 | E120: AUXILIAR ADMINISTRATIVO DE FACTURACIÒN | F120: 03 FEBRERO DE 2020 | G120: 29 FEBRERO DE 2020 | H120: 1600000 | I120: 1600000 | J120: SANDRA SANMARTIN | K120: SUB GERENTE ADMINISTRATIVO | L120: CENTRO COSTA HERMOSA | M120: 668 | N120: 1299 | O120: 20/02/2020 | P120: https://www.contratos.gov.co/consultas/detalleProceso.do?numConstancia=20-4-10508153
A121: 119 | B121: 30568187 | C121: HAIDE MEJIA PRADO | D121: 0573-2020 | E121: AUXILIAR SERVICIOS GENERALES URGENCIA | F121: 03 FEBRERO DE 2020 | G121: 29 FEBRERO DE 2020 | H121: 1378000 | I121: 1378000 | J121: WILFRAN JIMENEZ DE LA PEÑA | K121: COORD CENTRO SALUD | L121: CIUDADELA METROPOLITANA | M121: 669 | N121: 1300 | O121: 20/02/2020 | P121: https://www.contratos.gov.co/consultas/detalleProceso.do?numConstancia=20-4-10508178
A122: 120 | B122: 1143425564 | C122: HECTOR JOSE BARRAZA GUTIERREZ | D122: 0574-2020 | E122: ASESOR DE PRESUPUESTO | F122: 03 FEBRERO DE 2020 | G122: 29 FEBRERO DE 2020 | H122: 4500000 | I122: 4500000 | J122: NICOLAS OQUENDO | K122: DIRECTOR FINANCIERO | L122: ADMON COSTA HERMOSA | M122: 670 | N122: 1301 | O122: 20/02/2020 | P122: https://www.contratos.gov.co/consultas/detalleProceso.do?numConstancia=20-4-10508457
A123: 121 | B123: 44154490 | C123: HEIDY LUZ CARRILLO DIAZ | D123: 0575-2020 | E123: AUXILIAR ADMINISTRATIVO DE FACTURACIÒN | F123: 03 FEBRERO DE 2020 | G123: 29 FEBRERO DE 2020 | H123: 1900000 | I123: 1900000 | J123: LUIS GRANADOS GOMEZ | K123: COORD CENTRO SALUD | L123: CENTRO MANUELA BELTRAN | M123: 671 | N123: 1302 | O123: 20/02/2020 | P123: https://www.contratos.gov.co/consultas/detalleProceso.do?numConstancia=20-4-10508516
A124: 122 | B124: 1042440903 | C124: HEIDY MARTINEZ GUTIERREZ | D124: 0576-2020 | E124: AUXILIAR DE FACTURACION URGENCIA | F124: 03 FEBRERO DE 2020 | G124: 29 FEBRERO DE 2020 | H124: 1400000 | I124: 1400000 | J124: SANDRA SANMARTIN | K124: SUB GERENTE ADMINISTRATIVO | L124: CENTRO COSTA HERMOSA | M124: 672 | N124: 1303 | O124: 20/02/2020 | P124: https://www.contratos.gov.co/consultas/detalleProceso.do?numConstancia=20-4-10508567
A125: 123 | B125: 8763571 | C125: HENRY ALFREDO PERTUZ GALVAN | D125: 0577-2020 | E125: ORIENTADOR | F125: 03 FEBRERO DE 2020 | G125: 29 FEBRERO DE 2020 | H125: 1500000 | I125: 1500000 | J125: YARELIS GUERRA CORREA | K125: COORD CENTRO SALUD | L125: CENTRO VILLA ESTADIO | M125: 673 | N125: 1304 | O125: 20/02/2020 | P125: https://www.contratos.gov.co/consultas/detalleProceso.do?numConstancia=20-4-10510699
A126: 124 | B126: 1143466577 | C126: HOLLMAN DE JESUS ARENAS VERGARA | D126: 0578-2020 | E126: ORIENTADOR | F126: 03 FEBRERO DE 2020 | G126: 29 FEBRERO DE 2020 | H126: 1270000 | I126: 1270000 | J126: SERGIO BOVEA MARIN | K126: COORD CENTRO SALUD | L126: CENTRO DE 13 DE JUNIO | M126: 674 | N126: 1305 | O126: 20/02/2020 | P126: https://www.contratos.gov.co/consultas/detalleProceso.do?numConstancia=20-4-10510722
A127: 125 | B127: 72045976 | C127: HUMBERTO ZACARIAS CADAVID ALDANA | D127: 0579-2020 | E127: ASESOR GERENCIA | F127: 03 FEBRERO DE 2020 | G127: 29 FEBRERO DE 2020 | H127: 4000000 | I127: 4000000 | J127: ROSA MADERA | K127: GERENTE | L127: ADMON COSTA HERMOSA | M127: 675 | N127: 1306 | O127: 20/02/2020 | P127: https://www.contratos.gov.co/consultas/detalleProceso.do?numConstancia=20-4-10510736
A128: 126 | B128: 33005079 | C128: IDALMIS NAVARRO ARROYO | D128: 0580-2020 | E128: AUXILIAR SERVICIOS GENERALES URGENCIA | F128: 03 FEBRERO DE 2020 | G128: 29 FEBRERO DE 2020 | H128: 1378000 | I128: 1378000 | J128: WILFRAN JIMENEZ DE LA PEÑA | K128: COORD CENTRO SALUD | L128: CIUDADELA METROPOLITANA | M128: 676 | N128: 1307 | O128: 20/02/2020 | P128: https://www.contratos.gov.co/consultas/detalleProceso.do?numConstancia=20-4-10510758
A129: 127 | B129: 1129571476 | C129: ILIANA MATOS RAMOS | D129: 0581-2020 | E129: ABOGADO EXTERNO | F129: 03 FEBRERO DE 2020 | G129: 29 FEBRERO DE 2020 | H129: 4000000 | I129: 4000000 | J129: ORNELLA FIORENTINO | K129: JEFE JURIDICA | L129: ADMON COSTA HERMOSA | M129: 677 | N129: 1308 | O129: 20/02/2020 | P129: https://www.contratos.gov.co/consultas/detalleProceso.do?numConstancia=20-4-10510773
A130: 128 | B130: 32861543 | C130: INGRID NAVARRO CARRILLO | D130: 0582-2020 | E130: FISIOTERAPEUTA | F130: 03 FEBRERO DE 2020 | G130: 29 FEBRERO DE 2020 | H130: 5000000 | I130: =H130*1 -> 5000000 | J130: SERGIO BOVEA MARIN | K130: COORD CENTRO SALUD | L130: CENTRO DE 13 DE JUNIO | M130: 678 | N130: 1309 | O130: 20/02/2020 | P130: https://www.contratos.gov.co/consultas/detalleProceso.do?numConstancia=20-4-10510780
A131: 129 | B131: 1003265428 | C131: ISABEL CURIEL CORTINA | D131: 0583-2020 | E131: GESTION DOCUMENTAL JURIDICA | F131: 03 FEBRERO DE 2020 | G131: 29 FEBRERO DE 2020 | H131: 1270000 | I131: 1270000 | J131: ORNELLA FIORENTINO | K131: JEFE OFICINA JURIDICA | L131: CENTRO COSTA HERMOSA | M131: 679 | N131: 1310 | O131: 20/02/2020 | P131: https://www.contratos.gov.co/consultas/detalleProceso.do?numConstancia=20-4-10510799
A132: 130 | B132: 72428579 | C132: IVAN ANDRES DOMINGUEZ SAGBINI | D132: 0584-2020 | E132: GINECOLOGO | F132: 03 FEBRERO DE 2020 | G132: 29 FEBRERO DE 2020 | H132: 6000000 | I132: 6000000 | J132: NILSA ARIZA MARQUEZ | K132: COORDINADOR P Y P | L132: CIUDADELA METROPOLITANA | M132: 680 | N132: 1311 | O132: 20/02/2020 | P132: https://www.contratos.gov.co/consultas/detalleProceso.do?numConstancia=20-4-10510824
A133: =+A132+1 -> 131 | B133: 1042447104 | C133: IVOR ANDRES SANJUAN PEREZ | D133: 0585-2020 | E133: AUXILIAR RECURSOS FISICOS | F133: 03 FEBRERO DE 2020 | G133: 29 FEBRERO DE 2020 | H133: 1900000 | I133: 1900000 | J133: SANDRA SANMARTIN | K133: SUB GERENTE ADMINISTRATIVO | L133: CENTRO COSTA HERMOSA | M133: 681 | N133: 1312 | O133: 20/02/2020 | P133: https://www.contratos.gov.co/consultas/detalleProceso.do?numConstancia=20-4-10510883
A134: 132 | B134: 72429926 | C134: JAIRO ESCOBAR ROMERO | D134: 0586-2020 | E134: MEDICO DE URGENCIA | F134: 03 FEBRERO DE 2020 | G134: 29 FEBRERO DE 2020 | H134: 2560000 | I134: 2560000 | J134: BETTY PERTUZ | K134: SUBGERENTE CIENTIFICO | L134: CENTRO DE 13 DE JUNIO | M134: 682 | N134: 1313 | O134: 20/02/2020 | P134: https://www.contratos.gov.co/consultas/detalleProceso.do?numConstancia=20-4-10510927
A135: 133 | B135: 32703101 | C135: JANETH DEL CARMEN GUZMAN CANTILLO | D135: 0587-2020 | E135: COORDINADOR DE FACTURACION | F135: 03 FEBRERO DE 2020 | G135: 29 FEBRERO DE 2020 | H135: 1600000 | I135: 1600000 | J135: YARELIS GUERRA CORREA | K135: COORD CENTRO SALUD | L135: CENTRO VILLA ESTADIO | M135: 683 | N135: 1314 | O135: 20/02/2020 | P135: https://www.contratos.gov.co/consultas/detalleProceso.do?numConstancia=20-4-10510943
A136: 134 | B136: 26900583 | C136: JANETH JIMENEZ PEÑA | D136: 0588-2020 | E136: TRABAJADORA SOCIAL | F136: 03 FEBRERO DE 2020 | G136: 29 FEBRERO DE 2020 | H136: 2500000 | I136: 2500000 | J136: CARLOS VISBAL JIMENEZ | K136: COORD CENTRO SALUD | L136: CENTRO COSTA HERMOSA | M136: 684 | N136: 1315 | O136: 20/02/2020 | P136: https://www.contratos.gov.co/consultas/detalleProceso.do?numConstancia=20-4-10510957
A137: 135 | B137: 72072808 | C137: JARID BERDUGO COBO | D137: 0589-2020 | E137: REFERENCIA Y CONTRAREFERENCIA | F137: 03 FEBRERO DE 2020 | G137: 29 FEBRERO DE 2020 | H137: 1480000 | I137: 1480000 | J137: WILFRAN JIMENEZ DE LA PEÑA | K137: COORD CENTRO SALUD | L137: CIUDADELA METROPOLITANA | M137: 685 | N137: 1316 | O137: 20/02/2020 | P137: https://www.contratos.gov.co/consultas/detalleProceso.do?numConstancia=20-4-10510972
A138: 136 | B138: 8566485 | C138: JAVIER VLADIMIR CASTRO POVEA | D138: 0590-2020 | E138: ABOGADO - TALENTO HUMANO | F138: 03 FEBRERO DE 2020 | G138: 29 FEBRERO DE 2020 | H138: 5000000 | I138: 5000000 | J138: FABIAN COLPAS | K138: JEFE TALENTO HUMANO | L138: ADMON COSTA HERMOSA | M138: 686 | N138: 1317 | O138: 20/02/2020 | P138: https://www.contratos.gov.co/consultas/detalleProceso.do?num
A139: 137 | B139: 1143453456 | C139: JEAN DAVID MONTALVO ZULETA | D139: 0591-2020 | E139: AGENTE CALL CENTER | F139: 03 FEBRERO DE 2020 | G139: 29 FEBRERO DE 2020 | H139: 1378000 | I139: 1378000 | J139: BETTY PERTUZ | K139: SUBGERENTE CIENTIFICO | L139: COLL-CENTER- CIUDADELA METROPOLITANA | M139: 687 | N139: 1318 | O139: 20/02/2020 | P139: https://www.contratos.gov.co/consultas/detalleProceso.do?numConstancia=20-4-10511159
A140: 138 | B140: 32869709 | C140: JENECIS BARRERA MIRANDA | D140: 0592-2020 | E140: ENFERMERA MATERNIDAD SEGURA | F140: 03 FEBRERO DE 2020 | G140: 29 FEBRERO DE 2020 | H140: 2300000 | I140: 2300000 | J140: NILSA ARIZA MARQUEZ | K140: COORDINADOR P Y P | L140: CENTRO DE 13 DE JUNIO | M140: 688 | N140: 1319 | O140: 20/02/2020 | P140: https://www.contratos.gov.co/consultas/detalleProceso.do?numConstancia=20-4-10511180
A141: 139 | B141: 55349541 | C141: JESSICA MARIA ALMARALES RUIZ | D141: 0593-2020 | E141: MEDICO DE URGENCIA | F141: 03 FEBRERO DE 2020 | G141: 29 FEBRERO DE 2020 | H141: 2560000 | I141: 2560000 | J141: WILFRAN JIMENEZ DE LA PEÑA | K141: COORD CENTRO SALUD | L141: CIUDADELA METROPOLITANA | M141: 689 | N141: 1320 | O141: 20/02/2020 | P141: https://www.contratos.gov.co/consultas/detalleProceso.do?numConstancia=20-4-10511197
A142: 140 | B142: 1042460532 | C142: JESUS DAVID PEDRAZA TORRES | D142: 0594-2020 | E142: TECNICO SISTEMAS | F142: 03 FEBRERO DE 2020 | G142: 29 FEBRERO DE 2020 | H142: 1500000 | I142: 1500000 | J142: ZULI ROMERO | K142: COORDINADOR TIC | L142: ADMON COSTA HERMOSA | M142: 690 | N142: 1321 | O142: 20/02/2020 | P142: https://www.contratos.gov.co/consultas/detalleProceso.do?numConstancia=20-4-10511251
A143: 141 | B143: 1042444925 | C143: JESUS MORENO DE ALBA | D143: 0595-2020 | E143: AUXILIAR DE FACTURACION URGENCIA | F143: 03 FEBRERO DE 2020 | G143: 29 FEBRERO DE 2020 | H143: 1400000 | I143: 1400000 | J143: SERGIO BOVEA MARIN | K143: COORD CENTRO SALUD | L143: CENTRO DE 13 DE JUNIO | M143: 691 | N143: 1322 | O143: 20/02/2020 | P143: https://www.contratos.gov.co/consultas/detalleProceso.do?numConstancia=20-4-10511277
A144: 142 | B144: 8740611 | C144: JESUS RECUERO LAMADRID | D144: 0596-2020 | E144: ORIENTADOR | F144: 03 FEBRERO DE 2020 | G144: 29 FEBRERO DE 2020 | H144: 1270000 | I144: 1270000 | J144: WILFRAN JIMENEZ DE LA PEÑA | K144: COORD CENTRO SALUD | L144: CIUDADELA METROPOLITANA | M144: 692 | N144: 1323 | O144: 20/02/2020 | P144: https://www.contratos.gov.co/consultas/detalleProceso.do?numConstancia=20-4-10511337
A145: 143 | B145: 44161544 | C145: JHOANA CATALINA SANDOVAL ESCORCIA | D145: 0597-2020 | E145: ENFERMERA JEFE URGENCIAS | F145: 03 FEBRERO DE 2020 | G145: 29 FEBRERO DE 2020 | H145: 1900000 | I145: 1900000 | J145: SERGIO BOVEA MARIN | K145: COORD CENTRO SALUD | L145: CENTRO DE 13 DE JUNIO | M145: 693 | N145: 1324 | O145: 20/02/2020 | P145: https://www.contratos.gov.co/consultas/detalleProceso.do?numConstancia=20-4-10511405
A146: 144 | B146: 1042444832 | C146: JHONNATAN ALFONSO DE LA HOZ BARRIOS | D146: 0598-2020 | E146: MEDICO CONSULTA EXTERNA | F146: 03 FEBRERO DE 2020 | G146: 29 FEBRERO DE 2020 | H146: =2120000*2 -> 4240000 | I146: 4240000 | J146: AIX PALACIO | K146: COORD CENTRO DE SALUD | L146: CIUDADELA METROPOLITANA | M146: 694 | N146: 1325 | O146: 20/02/2020 | P146: https://www.contratos.gov.co/consultas/detalleProceso.do?numConstancia=20-4-10511422
A147: 145 | B147: 1045706679 | C147: JONATHAN ACOSTA MORENO | D147: 0599-2020 | E147: MEDICO DE URGENCIA | F147: 03 FEBRERO DE 2020 | G147: 29 FEBRERO DE 2020 | H147: 2560000 | I147: 2560000 | J147: BETTY PERTUZ | K147: SUBGERENTE CIENTIFICO | L147: CIUDADELA METROPOLITANA | M147: 695 | N147: 1326 | O147: 20/02/2020 | P147: https://www.contratos.gov.co/consultas/detalleProceso.do?numConstancia=20-4-10511442
A148: 146 | B148: 8754502 | C148: JORGE DE LA HOZ DE LA HOZ | D148: 0600-2020 | E148: ORIENTADOR | F148: 03 FEBRERO DE 2020 | G148: 29 FEBRERO DE 2020 | H148: 1270000 | I148: 1270000 | J148: DIANA MARTINEZ PACHECO | K148: COORD CENTRO DE SALUD | L148: CENTRO SALAMANCA | M148: 696 | N148: 1327 | O148: 20/02/2020 | P148: https://www.contratos.gov.co/consultas/detalleProceso.do?numConstancia=20-4-10511473
A149: 147 | B149: 8776312 | C149: JORGE RIVERA MEZA | D149: 0601-2020 | E149: AUXILIAR RECURSOS FISICOS | F149: 03 FEBRERO DE 2020 | G149: 29 FEBRERO DE 2020 | H149: 1900000 | I149: 1900000 | J149: SANDRA SANMARTIN | K149: SUB GERENTE ADMINISTRATIVO | L149: CENTRO COSTA HERMOSA | M149: 697 | N149: 1328 | O149: 20/02/2020 | P149: https://www.contratos.gov.co/consultas/detalleProceso.do?numConstancia=20-4-10511488
A150: 148 | B150: 8704073 | C150: JOSE ALFREDO JIMENEZ CASTRO | D150: 0602-2020 | E150: ORIENTADOR | F150: 03 FEBRERO DE 2020 | G150: 29 FEBRERO DE 2020 | H150: 1270000 | I150: 1270000 | J150: AIX PALACIO | K150: COORD CENTRO DE SALUD | L150: CENTRO DE SALUD EL PARQUE | M150: 698 | N150: 1329 | O150: 20/02/2020 | P150: https://www.contratos.gov.co/consultas/detalleProceso.do?numConstancia=20-4-10511499
A151: 149 | B151: 1140855812 | C151: JOSE DAVID NOGUERA SOTO | D151: 0603-2020 | E151: GESTIÓN DOCUMENTAL CONTRATACIÓN | F151: 03 FEBRERO DE 2020 | G151: 29 FEBRERO DE 2020 | H151: 2300000 | I151: 2300000 | J151: ORNELLA FIORENTINO | K151: JEFE OFICINA JURIDICA | L151: ADMON COSTA HERMOSA | M151: 699 | N151: 1330 | O151: 20/02/2020 | P151: https://www.contratos.gov.co/consultas/detalleProceso.do?numConstancia=20-4-10511512
A152: 150 | B152: 1045698343 | C152: JOSE FRANCISCO INFANZON CASTRO | D152: 0604-2020 | E152: PROFESIONAL DE RECURSOS FISICOS | F152: 03 FEBRERO DE 2020 | G152: 29 FEBRERO DE 2020 | H152: 5800000 | I152: 5800000 | J152: ROSA MADERA | K152: GERENTE | L152: ADMON COSTA HERMOSA | M152: 700 | N152: 1331 | O152: 20/02/2020 | P152: https://www.contratos.gov.co/consultas/detalleProceso.do?numConstancia=20-4-10511529
A153: 151 | B153: 8532785 | C153: JOSE GUERRERO ORTIZ | D153: 0605-2020 | E153: AGENTE CALL CENTER | F153: 03 FEBRERO DE 2020 | G153: 29 FEBRERO DE 2020 | H153: 1378000 | I153: 1378000 | J153: BETTY PERTUZ | K153: SUBGERENTE CIENTIFICO | L153: COLL-CENTER- CIUDADELA METROPOLITANA | M153: 701 | N153: 1332 | O153: 20/02/2020 | P153: https://www.contratos.gov.co/consultas/detalleProceso.do?numConstancia=20-4-10511548
A154: 152 | B154: 72434909 | C154: JOSE IGNACIO DE ALBA MARTINEZ | D154: 0606-2020 | E154: AUXILIAR DE ARCHIVO-juridico | F154: 03 FEBRERO DE 2020 | G154: 29 FEBRERO DE 2020 | H154: 1500000 | I154: 1500000 | J154: ORNELLA FIORENTINO | K154: SUB GERENTE ADMINISTRATIVO | L154: ARCHIVO CENTRAL | M154: 702 | N154: 1333 | O154: 20/02/2020 | P154: https://www.contratos.gov.co/consultas/detalleProceso.do?numConstancia=20-4-10511592
A155: 153 | B155: 72271514 | C155: JOSE LUIS FLOREZ DIAZ | D155: 0607-2020 | E155: AUXILIAR ADMINISTRATIVO VENTANILLA | F155: 03 FEBRERO DE 2020 | G155: 29 FEBRERO DE 2020 | H155: 1900000 | I155: 1900000 | J155: SANDRA SANMARTIN | K155: SUB GERENTE ADMINISTRATIVO | L155: COSTA HERMOSA | M155: 703 | N155: 1334 | O155: 20/02/2020 | P155: https://www.contratos.gov.co/consultas/detalleProceso.do?numConstancia=20-4-10511606
A156: 154 | B156: 9143862 | C156: JOSE LUIS LEAL CORREA | D156: 0608-2020 | E156: AUXILIAR DE FARMACIA | F156: 03 FEBRERO DE 2020 | G156: 29 FEBRERO DE 2020 | H156: 1270000 | I156: 1270000 | J156: BETTY PERTUZ | K156: SUBGERENTE CIENTIFICO | L156: FARMACIA COSTA HERMOSA | M156: 704 | N156: 1335 | O156: 20/02/2020 | P156: https://www.contratos.gov.co/consultas/detalleProceso.do?numConstancia=20-4-10511655
A157: 155 | B157: 72165796 | C157: JOSE SALVADOR FERNANDEZ RODELO | D157: 0609-2020 | E157: ORIENTADOR | F157: 03 FEBRERO DE 2020 | G157: 29 FEBRERO DE 2020 | H157: 1270000 | I157: 1270000 | J157: WILFRAN JIMENEZ DE LA PEÑA | K157: COORD CENTRO SALUD | L157: CIUDADELA METROPOLITANA | M157: 705 | N157: 1336 | O157: 20/02/2020 | P157: https://www.contratos.gov.co/consultas/detalleProceso.do?numConstancia=20-4-10511669
A158: 156 | B158: 32810582 | C158: JOSEFINA CARO VITOLA | D158: 0610-2020 | E158: AUXILIAR DE ENFERMERIA URGENCIAS | F158: 03 FEBRERO DE 2020 | G158: 29 FEBRERO DE 2020 | H158: 1378000 | I158: 1378000 | J158: SERGIO BOVEA MARIN | K158: COORD CENTRO SALUD | L158: CENTRO DE 13 DE JUNIO | M158: 706 | N158: 1337 | O158: 20/02/2020 | P158: https://www.contratos.gov.co/consultas/detalleProceso.do?numConstancia=20-4-10511701
A159: 157 | B159: 1042442139 | C159: JOSHIKY ESTHER AHUMADA PACHECO | D159: 0611-2020 | E159: ENFERMERA JEFE CONSULTA EXTERNA | F159: 03 FEBRERO DE 2020 | G159: 29 FEBRERO DE 2020 | H159: 2300000 | I159: 2300000 | J159: NILSA ARIZA MARQUEZ | K159: COORDINADOR P Y P | L159: MANUELA BELTRAN | M159: 707 | N159: 1338 | O159: 20/02/2020 | P159: https://www.contratos.gov.co/consultas/detalleProceso.do?numConstancia=20-4-10511718
A160: 158 | B160: 72242552 | C160: JUAN CAMILO CASTILLO ARIZA | D160: 0612-2020 | E160: MEDICO CONSULTA EXTERNA | F160: 03 FEBRERO DE 2020 | G160: 29 FEBRERO DE 2020 | H160: 3180000 | I160: 3180000 | J160: CARLOS VISBAL JIMENEZ | K160: COORD CENTRO SALUD | L160: CENTRO COSTA HERMOSA | M160: 708 | N160: 1339 | O160: 20/02/2020 | P160: https://www.contratos.gov.co/consultas/detalleProceso.do?numConstancia=20-4-10511745
A161: 159 | B161: 72095954 | C161: JUAN CARLOS BARROS CARO | D161: 0613-2020 | E161: ASESOR GERENCIA | F161: 03 FEBRERO DE 2020 | G161: 29 FEBRERO DE 2020 | H161: 4500000 | I161: 4500000 | J161: ROSA MADERA | K161: GERENTE | L161: ADMON COSTA HERMOSA | M161: 709 | N161: 1340 | O161: 20/02/2020 | P161: https://www.contratos.gov.co/consultas/detalleProceso.do?numConstancia=20-4-10511764
A162: 160 | B162: 72278234 | C162: JUAN GABRIEL FRANCO PRENT | D162: 0614-2020 | E162: COORDINADOR DE FACTURACION | F162: 03 FEBRERO DE 2020 | G162: 29 FEBRERO DE 2020 | H162: 4375000 | I162: =H162*1 -> 4375000 | J162: SANDRA SANMARTIN | K162: SUB GERENTE ADMINISTRATIVO | L162: CENTRO COSTA HERMOSA | M162: 710 | N162: 1341 | O162: 20/02/2020 | P162: https://www.contratos.gov.co/consultas/detalleProceso.do?numConstancia=20-4-10511778
A163: 161 | B163: 8667553 | C163: JUAN SANDOVAL BOLIVAR | D163: 0615-2020 | E163: ODONTOLOGO | F163: 03 FEBRERO DE 2020 | G163: 29 FEBRERO DE 2020 | H163: =1900000/2+1900000 -> 2850000 | I163: 2850000 | J163: LUIS GRANADOS GOMEZ | K163: COORD CENTRO SALUD | L163: CENTRO MANUELA BELTRAN | M163: 711 | N163: 1342 | O163: 20/02/2020 | P163: https://www.contratos.gov.co/consultas/detalleProceso.do?numConstancia=20-4-10511801
A164: 162 | B164: 26853643 | C164: JUDITH CHARRIS MACHADO | D164: 0616-2020 | E164: ENFERMERA JEFE URGENCIAS | F164: 03 FEBRERO DE 2020 | G164: 29 FEBRERO DE 2020 | H164: 1900000 | I164: 1900000 | J164: WILFRAN JIMENEZ DE LA PEÑA | K164: COORD CENTRO SALUD | L164: CIUDADELA METROPOLITANA | M164: 712 | N164: 1343 | O164: 20/02/2020 | P164: https://www.contratos.gov.co/consultas/detalleProceso.do?numConstancia=20-4-10511872
A165: 163 | B165: 32814077 | C165: JUDITH TORRES CASTILLO | D165: 0617-2020 | E165: COORDINADOR DE FACTURACION | F165: 03 FEBRERO DE 2020 | G165: 29 FEBRERO DE 2020 | H165: 1600000 | I165: 1600000 | J165: AIX PALACIO | K165: COORD CENTRO DE SALUD | L165: CENTRO DE SALUD EL PARQUE | M165: 713 | N165: 1344 | O165: 20/02/2020 | P165: https://www.contratos.gov.co/consultas/detalleProceso.do?numConstancia=20-4-10511900
A166: 164 | B166: 32712489 | C166: JULIA ESTELLA RIVERA TREJOS | D166: 0618-2020 | E166: MEDICO DE URGENCIA | F166: 03 FEBRERO DE 2020 | G166: 29 FEBRERO DE 2020 | H166: 2560000 | I166: 2560000 | J166: BETTY PERTUZ | K166: SUBGERENTE CIENTIFICO | L166: CIUDADELA METROPOLITANA | M166: 714 | N166: 1345 | O166: 20/02/2020 | P166: https://www.contratos.gov.co/consultas/detalleProceso.do?numConstancia=20-4-10511925
A167: 165 | B167: 1042443708 | C167: JULIETH ANDREA CAMACHO CHACON | D167: 0619-2020 | E167: ENFERMERA JEFE | F167: 03 FEBRERO DE 2020 | G167: 29 FEBRERO DE 2020 | H167: 2300000 | I167: 2300000 | J167: NILSA ARIZA MARQUEZ | K167: COORDINADOR P Y P | L167: COSTA HERMOSA | M167: 715 | N167: 1346 | O167: 20/02/2020 | P167: https://www.contratos.gov.co/consultas/detalleProceso.do?numConstancia=20-4-10511947
A168: 166 | B168: 73140179 | C168: JULIO CESAR LOPEZ ROMERO | D168: 0620-2020 | E168: PAI WEB | F168: 03 FEBRERO DE 2020 | G168: 29 FEBRERO DE 2020 | H168: 1378000 | I168: 1378000 | J168: NILSA ARIZA MARQUEZ | K168: COORDINADOR PYP | L168: ARCHIVO CENTRAL | M168: 716 | N168: 1347 | O168: 20/02/2020 | P168: https://www.contratos.gov.co/consultas/detalleProceso.do?numConstancia=20-4-10511962
A169: 167 | B169: 22468261 | C169: KANYA MALLERLY BERNAL BECERRA | D169: 0621-2020 | E169: PAI WEB | F169: 03 FEBRERO DE 2020 | G169: 29 FEBRERO DE 2020 | H169: 2200000 | I169: 2200000 | J169: NILSA ARIZA MARQUEZ | K169: =+K168 -> COORDINADOR PYP | L169: ARCHIVO CENTRAL | M169: 717 | N169: 1348 | O169: 20/02/2020 | P169: https://www.contratos.gov.co/consultas/detalleProceso.do?numConstancia=20-4-10512000
A170: 168 | B170: 22642500 | C170: KAREN BETZY MORALES CASTILLO | D170: 0622-2020 | E170: PROMOTORA EN SALUD-DENGUE | F170: 03 FEBRERO DE 2020 | G170: 29 FEBRERO DE 2020 | H170: 1400000 | I170: 1400000 | J170: BETTY PERTUZ | K170: SUBGERENTE CIENTIFICO | M170: 718 | N170: 1349 | O170: 20/02/2020 | P170: https://www.contratos.gov.co/consultas/detalleProceso.do?numConstancia=20-4-10512018
A171: 169 | B171: 1043841968 | C171: KAREN DAYANA FONSECA MUÑOZ | D171: 0623-2020 | E171: MEDICO DE URGENCIA | F171: 03 FEBRERO DE 2020 | G171: 29 FEBRERO DE 2020 | H171: 2560000 | I171: 2560000 | J171: SERGIO BOVEA MARIN | K171: COORD CENTRO SALUD | L171: CENTRO DE 13 DE JUNIO | M171: 719 | N171: 1350 | O171: 20/02/2020 | P171: https://www.contratos.gov.co/consultas/detalleProceso.do?numConstancia=20-4-10512041
A172: 170 | B172: 1129508435 | C172: KAREN MARIA RODRIGUEZ MOVILLA | D172: 0624-2020 | E172: AUXILIAR DE FARMACIA | F172: 03 FEBRERO DE 2020 | G172: 29 FEBRERO DE 2020 | H172: 1270000 | I172: 1270000 | J172: BETTY PERTUZ | K172: SUBGERENTE CIENTIFICO | L172: ADMON -FARMACIA | M172: 720 | N172: 1351 | O172: 20/02/2020 | P172: https://www.contratos.gov.co/consultas/detalleProceso.do?numConstancia=20-4-10512064
A173: 171 | B173: 55313269 | C173: KAREN MARTINEZ BRANGO | D173: 0625-2020 | E173: AUXILIAR ENFERMERIA URGENCIAS | F173: 03 FEBRERO DE 2020 | G173: 29 FEBRERO DE 2020 | H173: 1378000 | I173: 1378000 | J173: SERGIO BOVEA MARIN | K173: COORD CENTRO SALUD | L173: CENTRO DE 13 DE JUNIO | M173: 721 | N173: 1352 | O173: 20/02/2020 | P173: https://www.contratos.gov.co/consultas/detalleProceso.do?numConstancia=20-4-10512103
A174: 172 | B174: 1129513283 | C174: KARINE MILENA LEONES MARQUEZ | D174: 0626-2020 | E174: AUXILIAR DE FARMACIA | F174: 03 FEBRERO DE 2020 | G174: 29 FEBRERO DE 2020 | H174: 1905000 | I174: 1905000 | J174: BETTY PERTUZ | K174: SUBGERENTE CIENTIFICO | L174: CIUDADELA METROPOLITANA | M174: 722 | N174: 1353 | O174: 20/02/2020 | P174: https://www.contratos.gov.co/consultas/detalleProceso.do?numConstancia=20-4-10512128
A175: 173 | B175: 1083433669 | C175: KARLA MARIA SUAREZ MUÑOZ | D175: 0627-2020 | E175: AUXILIAR DE ENFERMERIA URGENCIAS | F175: 03 FEBRERO DE 2020 | G175: 29 FEBRERO DE 2020 | H175: 1378000 | I175: =+H175 -> 1378000 | J175: WILFRAN JIMENEZ DE LA PEÑA | K175: COORD CENTRO SALUD | L175: CIUDADELA METROPOLITANA | M175: 723 | N175: 1354 | O175: 20/02/2020 | P175: https://www.contratos.gov.co/consultas/detalleProceso.do?numConstancia=20-4-10512147
A176: 174 | B176: 22534402 | C176: KATERINE RUA SUAREZ | D176: 0628-2020 | E176: AUXILIAR DE FACTURACION URGENCIA | F176: 03 FEBRERO DE 2020 | G176: 29 FEBRERO DE 2020 | H176: 1400000 | I176: =H176*1 -> 1400000 | J176: SANDRA SANMARTIN | K176: SUB GERENTE ADMINISTRATIVO | L176: CENTRO COSTA HERMOSA | M176: 724 | N176: 1355 | O176: 20/02/2020 | P176: https://www.contratos.gov.co/consultas/detalleProceso.do?numConstancia=20-4-10512184
A177: 175 | B177: 1042429330 | C177: KATHERINE BALZA SALAS | D177: 0629-2020 | E177: AUXILIAR DE ARCHIVO | F177: 03 FEBRERO DE 2020 | G177: 29 FEBRERO DE 2020 | H177: 1500000 | I177: 1500000 | J177: SANDRA SANMARTIN | K177: SUB GERENTE ADMINISTRATIVO | L177: ARCHIVO CENTRAL | M177: 725 | N177: 1356 | O177: 20/02/2020 | P177: https://www.contratos.gov.co/consultas/detalleProceso.do?numConstancia=20-4-10512207
A178: 176 | B178: 22804794 | C178: KATHERINE GUERRERO SEPULVEDA | D178: 0630-2020 | E178: ABOGADO EXTERNO - CONTRATACION | F178: 03 FEBRERO DE 2020 | G178: 29 FEBRERO DE 2020 | H178: 5800000 | I178: 5800000 | J178: ORNELLA FIORENTINO | K178: JEFE OFICINA JURIDICA | L178: CENTRO COSTA HERMOSA | M178: 726 | N178: 1357 | O178: 20/02/2020 | P178: https://www.contratos.gov.co/consultas/detalleProceso.do?numConstancia=20-4-10512222
A179: 177 | B179: 32894662 | C179: KATTY MACIAS PONTON | D179: 0631-2020 | E179: MEDICO DE URGENCIA | F179: 03 FEBRERO DE 2020 | G179: 29 FEBRERO DE 2020 | H179: 2560000 | I179: 2560000 | J179: WILFRAN JIMENEZ DE LA PEÑA | K179: COORD CENTRO SALUD | L179: CIUDADELA METROPOLITANA | M179: 727 | N179: 1358 | O179: 20/02/2020 | P179: https://www.contratos.gov.co/consultas/detalleProceso.do?numConstancia=20-4-10512244
A180: 178 | B180: 55301340 | C180: KATYA LILIANA NORIEGA BARRIOS | D180: 0632-2020 | E180: AUXILIAR DE ENFERMERIA URGENCIAS | F180: 03 FEBRERO DE 2020 | G180: 29 FEBRERO DE 2020 | H180: 1378000 | I180: 1378000 | J180: SERGIO BOVEA MARIN | K180: COORD CENTRO SALUD | L180: CENTRO DE 13 DE JUNIO | M180: 728 | N180: 1359 | O180: 20/02/2020 | P180: https://www.contratos.gov.co/consultas/detalleProceso.do?numConstancia=20-4-10512265
A181: 179 | B181: 22642874 | C181: KELLYS JOHANA URUETA SUAREZ | D181: 0633-2020 | E181: AUXILIAR SERVICIOS GENERALES URGENCIA | F181: 03 FEBRERO DE 2020 | G181: 29 FEBRERO DE 2020 | H181: 1378000 | I181: 1378000 | J181: WILFRAN JIMENEZ DE LA PEÑA | K181: COORD CENTRO SALUD | L181: CIUDADELA METROPOLITANA | M181: 729 | N181: 1360 | O181: 20/02/2020 | P181: https://www.contratos.gov.co/consultas/detalleProceso.do?numConstancia=20-4-10512304
A182: 180 | B182: 1129581013 | C182: KERLY JHOVELIS PITRE MORENO | D182: 0634-2020 | E182: ENFERMERA JEFE P Y P | F182: 03 FEBRERO DE 2020 | G182: 29 FEBRERO DE 2020 | H182: 2300000 | I182: 2300000 | J182: NILSA ARIZA MARQUEZ | K182: COORDINADOR P Y P | L182: CIUDADELA METROPOLITANA | M182: 730 | N182: 1361 | O182: 20/02/2020 | P182: https://www.contratos.gov.co/consultas/detalleProceso.do?numConstancia=20-4-10512331
A183: 181 | B183: 1045697885 | C183: LAURA ALANDETE CASTRO | D183: 0635-2020 | E183: MEDICO DE URGENCIA | F183: 03 FEBRERO DE 2020 | G183: 29 FEBRERO DE 2020 | H183: 2560000 | I183: 2560000 | J183: SERGIO BOVEA MARIN | K183: COORD CENTRO SALUD | L183: CENTRO DE 13 DE JUNIO | M183: 731 | N183: 1362 | O183: 20/02/2020 | P183: https://www.contratos.gov.co/consultas/detalleProceso.do?numConstancia=20-4-10512346
A184: 182 | B184: 22739758 | C184: LAURA MELENDEZ SALAZAR | D184: 0636-2020 | E184: ODONTOLOGO | F184: 03 FEBRERO DE 2020 | G184: 29 FEBRERO DE 2020 | H184: 1900000 | I184: 1900000 | J184: YARELIS GUERRA CORREA | K184: COORD CENTRO DE SALUD | L184: CENTRO VILLA ESTADIO | M184: 732 | N184: 1363 | O184: 20/02/2020 | P184: https://www.contratos.gov.co/consultas/detalleProceso.do?numConstancia=20-4-10512422
A185: 183 | B185: 1045747916 | C185: LEIDY DIANA PAEZ OROZCO | D185: 0637-2020 | E185: ENFERMERA JEFE | F185: 03 FEBRERO DE 2020 | G185: 29 FEBRERO DE 2020 | H185: 1900000 | I185: 1900000 | J185: LUIS CARLOS DE LEON BERNIER | K185: COORD CENTTRO SALUD | L185: CENTRO MACLOVIA | M185: 733 | N185: 1364 | O185: 20/02/2020 | P185: https://www.contratos.gov.co/consultas/detalleProceso.do?numConstancia=20-4-10512492
A186: 184 | B186: 32879736 | C186: LEISYS MARIA CASTRO OLARTE | D186: 0638-2020 | E186: AUXILIAR DE FACTURACION URGENCIA | F186: 03 FEBRERO DE 2020 | G186: 29 FEBRERO DE 2020 | H186: 1400000 | I186: 1400000 | J186: SANDRA SANMARTIN | K186: SUB GERENTE ADMINISTRATIVO | L186: CENTRO COSTA HERMOSA | M186: 734 | N186: 1365 | O186: 20/02/2020 | P186: https://www.contratos.gov.co/consultas/detalleProceso.do?numConstancia=20-4-10512530
A187: 185 | B187: 1140846298 | C187: LENIN ALVAREZ PINEDA | D187: 0639-2020 | E187: INGENIERO DE SOPORTE | F187: 03 FEBRERO DE 2020 | G187: 29 FEBRERO DE 2020 | H187: 3000000 | I187: 3000000 | J187: NILSA ARIZA MARQUEZ | K187: COORDINADOR P Y P | L187: CENTRO COSTA HERMOSA | M187: 735 | N187: 1366 | O187: 20/02/2020 | P187: https://www.contratos.gov.co/consultas/detalleProceso.do?numConstancia=20-4-10512555
A188: 186 | B188: 1002157167 | C188: LEODALIZ SALGADO GUERRERO | D188: 0640-2020 | E188: AGENTE CALL CENTER | F188: 03 FEBRERO DE 2020 | G188: 29 FEBRERO DE 2020 | H188: 1400000 | I188: 1400000 | J188: BETTY PERTUZ | K188: SUB GERENTE ADMINISTRATIVO | L188: CENTRO COSTA HERMOSA | M188: 736 | N188: 1367 | O188: 20/02/2020 | P188: https://www.contratos.gov.co/consultas/detalleProceso.do?numConstancia=20-4-10513241
A189: 187 | B189: 1090415871 | C189: LEONARDO BELLO PUENTES | D189: 0641-2020 | E189: ODONTOLOGO | F189: 03 FEBRERO DE 2020 | G189: 29 FEBRERO DE 2020 | H189: 1900000 | I189: 1900000 | J189: WILFRAN JIMENEZ DE LA PEÑA | K189: COORD CENTRO SALUD | L189: CIUDADELA METROPOLITANA | M189: 737 | N189: 1368 | O189: 20/02/2020 | P189: https://www.contratos.gov.co/consultas/detalleProceso.do?numConstancia=20-4-10513406
A190: 188 | B190: 7469739 | C190: LEOVALDO MENDOZA PAREJO | D190: 0642-2020 | E190: ORIENTADOR | F190: 03 FEBRERO DE 2020 | G190: 29 FEBRERO DE 2020 | H190: 1270000 | I190: 1270000 | J190: WILFRAN JIMENEZ DE LA PEÑA | K190: COORD CENTRO SALUD | L190: CIUDADELA METROPOLITANA | M190: 738 | N190: 1369 | O190: 20/02/2020 | P190: https://www.contratos.gov.co/consultas/detalleProceso.do?numConstancia=20-4-10513419
A191: 189 | B191: 1045712889 | C191: LEYDILLY ROJANO GOMEZ | D191: 0643-2020 | E191: ENFERMERA JEFE URGENCIAS | F191: 03 FEBRERO DE 2020 | G191: 29 FEBRERO DE 2020 | H191: 1900000 | I191: 1900000 | J191: SERGIO BOVEA MARIN | K191: COORD CENTRO SALUD | L191: CENTRO DE 13 DE JUNIO | M191: 739 | N191: 1370 | O191: 20/02/2020 | P191: https://www.contratos.gov.co/consultas/detalleProceso.do?numConstancia=20-4-10513435
A192: 190 | B192: 42205053 | C192: LIBIA ELENA BELEÑO MENDOZA | D192: 0644-2020 | E192: TRABAJADORA SOCIAL | F192: 03 FEBRERO DE 2020 | G192: 29 FEBRERO DE 2020 | H192: 2300000 | I192: 2300000 | J192: WILFRAN JIMENEZ DE LA PEÑA | K192: COORD CENTRO SALUD | L192: CIUDADELA METROPOLITANA | M192: 740 | N192: 1371 | O192: 20/02/2020 | P192: https://www.contratos.gov.co/consultas/detalleProceso.do?numConstancia=20-4-10513576
A193: 191 | B193: 40981378 | C193: LIDYS CASTILLO TOVAR | D193: 0645-2020 | E193: PROFESIONAL OFICINA PAGADURIA | F193: 03 FEBRERO DE 2020 | G193: 29 FEBRERO DE 2020 | H193: 4000000 | I193: 4000000 | J193: LISGLENIS BUENO BRICEÑO | K193: JEFE TESORERIA | L193: ADMON COSTA HERMOSA | M193: 741 | N193: 1372 | O193: 20/02/2020 | P193: https://www.contratos.gov.co/consultas/detalleProceso.do?numConstancia=20-4-10513616
A194: 192 | B194: 32772357 | C194: LIDYS ESTHER REALES CASTRO | D194: 0646-2020 | E194: AUXILIAR DE ENFERMERIA URGENCIAS | F194: 03 FEBRERO DE 2020 | G194: 29 FEBRERO DE 2020 | H194: 1378000 | I194: 1378000 | J194: WILFRAN JIMENEZ DE LA PEÑA | K194: COORD CENTRO SALUD | L194: CIUDADELA METROPOLITANA | M194: 742 | N194: 1373 | O194: 20/02/2020 | P194: https://www.contratos.gov.co/consultas/detalleProceso.do?numConstancia=20-4-10513638
A195: 193 | B195: 32646304 | C195: LILIAN ESTHER ANTEQUERA MANTILLA | D195: 0647-2020 | E195: AUXILIAR DE ENFERMERIA | F195: 03 FEBRERO DE 2020 | G195: 29 FEBRERO DE 2020 | H195: 1166000 | I195: 1166000 | J195: LUIS GRANADOS GOMEZ | K195: COORD CENTRO SALUD | L195: CENTRO MANUELA BELTRAN | M195: 743 | N195: 1374 | O195: 20/02/2020 | P195: https://www.contratos.gov.co/consultas/detalleProceso.do?numConstancia=20-4-10513667
A196: 194 | B196: 32796648 | C196: LILIANA OROZCO ROJAS | D196: 0648-2020 | E196: ODONTOLOGO | F196: 03 FEBRERO DE 2020 | G196: 29 FEBRERO DE 2020 | H196: 1900000 | I196: 1900000 | J196: DIANA MARTINEZ PACHECO | K196: COORD CENTRO DE SALUD | L196: CENTRO SALAMANCA | M196: 744 | N196: 1375 | O196: 20/02/2020 | P196: https://www.contratos.gov.co/consultas/detalleProceso.do?numConstancia=20-4-10513897
A197: =+A196+1 -> 195 | B197: 22533893 | C197: LILIANA VARGAS MONTERO | D197: 0649-2020 | E197: ENFERMERA JEFE P Y P | F197: 03 FEBRERO DE 2020 | G197: 29 FEBRERO DE 2020 | H197: 2300000 | I197: 2300000 | J197: NILSA ARIZA MARQUEZ | K197: COORDINADOR P Y P | L197: CENTRO DE 13 DE JUNIO | M197: 745 | N197: 1376 | O197: 20/02/2020 | P197: https://www.contratos.gov.co/consultas/detalleProceso.do?numConstancia=20-4-10513960
A198: 196 | B198: 22738424 | C198: LINA MARGARITA TORO GARCIA | D198: 0650-2020 | E198: MEDICO PROGRAMA CARDIOVASCULAR | F198: 03 FEBRERO DE 2020 | G198: 29 FEBRERO DE 2020 | H198: 4600000 | I198: 4600000 | J198: DIANA MARTINEZ PACHECO | K198: COORD CENTRO DE SALUD | L198: CENTRO SALAMANCA | M198: 746 | N198: 1377 | O198: 20/02/2020 | P198: https://www.contratos.gov.co/consultas/detalleProceso.do?numConstancia=20-4-10513995
A199: 197 | B199: 1042426533 | C199: LIZ CATERINE ARROYO ROMERO | D199: 0651-2020 | E199: AUXILIAR DE FARMACIA | F199: 03 FEBRERO DE 2020 | G199: 29 FEBRERO DE 2020 | H199: 1270000 | I199: 1270000 | J199: BETTY PERTUZ | K199: SUBGERENTE CIENTIFICO | L199: CIUDADELA METROPOLITANA | M199: 747 | N199: 1378 | O199: 20/02/2020 | P199: https://www.contratos.gov.co/consultas/detalleProceso.do?numConstancia=20-4-10514066
A200: 198 | B200: 32716780 | C200: LORAINE PASION ARDILA | D200: 0652-2020 | E200: TRABAJADORA SOCIAL | F200: 03 FEBRERO DE 2020 | G200: 29 FEBRERO DE 2020 | H200: 2300000 | I200: 2300000 | J200: SERGIO BOVEA MARIN | K200: COORD CENTRO SALUD | L200: CENTRO DE 13 DE JUNIO | M200: 748 | N200: 1379 | O200: 20/02/2020 | P200: https://www.contratos.gov.co/consultas/detalleProceso.do?numConstancia=20-4-10514140
... 229 more rows

Sheet PIC -FEBRERO 2020
B1: CEDULA | C1: NOMBRE Y APELLIDO | D1: #OPS | E1: FECHA INICIO | F1: FECHA TERMINACION | G1: OBJETO DEL CONTRATO | H1: VALOR MENSUAL | I1: VALOR TOTAL | J1: VALOR LETRAS total | K1: SUPERVISOR | L1: CARGO | M1: RUBRO PRESUPUESTAL | N1: CDP | O1: RP | P1: FECHA DE PUBLICAICON | Q1: LINK SECOP
A2: 1 | B2: 32826839 | C2: BEATRIZ ISABEL SANMARTIN ESCORCIA | D2: 0001-2020-PIC | E2: 03 FEBRERO DE 2020 | F2: 31 MARZO DE 2020 | G2: VACUNADORA | H2: 1400000 | I2: =H2*2 -> 2800000 | J2: =[3]!PesosMN(I2) ->  | K2: NILSA ARIZA MARQUEZ | L2: COORDINADOR P Y P | M2: PIC | N2: 962 | O2: 1627 | P2: 2020-03-04 | Q2: https://www.contratos.gov.co/consultas/detalleProceso.do?numConstancia=20-4-10538008
A3: =+A2+1 -> 2 | B3: 1046814365 | C3: DESIRETH DEL CARMEN DE LEON ATENCIA | D3: 0002-2020-PIC | E3: 03 FEBRERO DE 2020 | F3: 31 MARZO DE 2020 | G3: VACUNADORA | H3: 1400000 | I3: =H3*2 -> 2800000 | J3: =[3]!PesosMN(I3) ->  | K3: NILSA ARIZA MARQUEZ | L3: COORDINADOR P Y P | M3: PIC | N3: 963 | O3: 1628 | P3: 2020-03-04 | Q3: https://www.contratos.gov.co/consultas/detalleProceso.do?numConstancia=20-4-10538020
A4: =+A3+1 -> 3 | B4: 32824393 | C4: ELIZABETH RODRIGUEZ BARRIOS | D4: 0003-2020-PIC | E4: 03 FEBRERO DE 2020 | F4: 31 MARZO DE 2020 | G4: VACUNADORA | H4: 1400000 | I4: 2800000 | J4: =[3]!PesosMN(I4) ->  | K4: NILSA ARIZA MARQUEZ | L4: COORDINADOR P Y P | M4: PIC | N4: 964 | O4: 1629 | P4: 2020-03-04 | Q4: https://www.contratos.gov.co/consultas/detalleProceso.do?numConstancia=20-4-10538076
A5: 4 | B5: 22467133 | C5: ESMERALDA COTE BORNACELY | D5: 0004-2020-PIC | E5: 03 FEBRERO DE 2020 | F5: 31 MARZO DE 2020 | G5: VACUNADORA | H5: 1400000 | I5: 2800000 | J5: =[3]!PesosMN(I5) ->  | K5: NILSA ARIZA MARQUEZ | L5: COORDINADOR P Y P | M5: PIC | N5: 965 | O5: 1630 | P5: 2020-03-04 | Q5: https://www.contratos.gov.co/consultas/detalleProceso.do?numConstancia=20-4-10538079
A6: 5 | B6: 49775980 | C6: GLORIA HERNANDEZ CENTENO | D6: 0005-2020-PIC | E6: 03 FEBRERO DE 2020 | F6: 31 MARZO DE 2020 | G6: VACUNADORA | H6: 1400000 | I6: 2800000 | J6: =[3]!PesosMN(I6) ->  | K6: NILSA ARIZA MARQUEZ | L6: COORDINADOR P Y P | M6: PIC | N6: 966 | O6: 1631 | P6: 2020-03-04 | Q6: https://www.contratos.gov.co/consultas/detalleProceso.do?numConstancia=20-4-10538086
A7: 6 | B7: 8767993 | C7: HAROLD MANUEL CABARCAS GONZALEZ | D7: 0006-2020-PIC | E7: 03 FEBRERO DE 2020 | F7: 31 MARZO DE 2020 | G7: VACUNADORA | H7: 1400000 | I7: 2800000 | J7: =[3]!PesosMN(I7) ->  | K7: NILSA ARIZA MARQUEZ | L7: COORDINADOR P Y P | M7: PIC | N7: 967 | O7: 1632 | P7: 2020-03-04 | Q7: https://www.contratos.gov.co/consultas/detalleProceso.do?numConstancia=20-4-10538096
A8: 7 | B8: 32619158 | C8: ISABEL HERRERA PACHECO | D8: 0007-2020-PIC | E8: 03 FEBRERO DE 2020 | F8: 31 MARZO DE 2020 | G8: VACUNADORA- CUARTO FRIO | H8: 1600000 | I8: 3200000 | J8: =[3]!PesosMN(I8) ->  | K8: NILSA ARIZA MARQUEZ | L8: COORDINADOR P Y P | M8: PIC | N8: 968 | O8: 1633 | P8: 2020-03-04 | Q8: https://www.contratos.gov.co/consultas/detalleProceso.do?numConstancia=20-4-10538100
A9: 8 | B9: 32816898 | C9: ISABEL OSORIO BARRIOS | D9: 0008-2020-PIC | E9: 03 FEBRERO DE 2020 | F9: 31 MARZO DE 2020 | G9: VACUNADORA | H9: 1400000 | I9: 2800000 | J9: =[3]!PesosMN(I9) ->  | K9: NILSA ARIZA MARQUEZ | L9: COORDINADOR P Y P | M9: PIC | N9: 969 | O9: 1634 | P9: 2020-03-04 | Q9: https://www.contratos.gov.co/consultas/detalleProceso.do?numConstancia=20-4-10538109
A10: 9 | B10: 22431886 | C10: IVIS GONZALEZ AYARZA | D10: 0009-2020-PIC | E10: 03 FEBRERO DE 2020 | F10: 31 MARZO DE 2020 | G10: VACUNADORA | H10: 1400000 | I10: 2800000 | J10: =[3]!PesosMN(I10) ->  | K10: NILSA ARIZA MARQUEZ | L10: COORDINADOR P Y P | M10: PIC | N10: 970 | O10: 1635 | P10: 2020-03-04 | Q10: https://www.contratos.gov.co/consultas/detalleProceso.do?numConstancia=20-4-10538118
A11: 10 | B11: 32865375 | C11: LEDIA DEL CARMEN MARTINEZ DE MOYA | D11: 0010-2020-PIC | E11: 03 FEBRERO DE 2020 | F11: 31 MARZO DE 2020 | G11: VACUNADORA | H11: 1400000 | I11: 2800000 | J11: =[3]!PesosMN(I11) ->  | K11: NILSA ARIZA MARQUEZ | L11: COORDINADOR P Y P | M11: PIC | N11: 971 | O11: 1636 | P11: 2020-03-04 | Q11: https://www.contratos.gov.co/consultas/detalleProceso.do?numConstancia=20-4-10538123
A12: 11 | B12: 22430756 | C12: MARITZA MARINO OSORIO | D12: 0011-2020-PIC | E12: 03 FEBRERO DE 2020 | F12: 31 MARZO DE 2020 | G12: VACUNADORA | H12: 1400000 | I12: 2800000 | J12: =[3]!PesosMN(I12) ->  | K12: NILSA ARIZA MARQUEZ | L12: COORDINADOR P Y P | M12: PIC | N12: 972 | O12: 1637 | P12: 2020-03-04 | Q12: https://www.contratos.gov.co/consultas/detalleProceso.do?numConstancia=20-4-10538141
A13: 12 | B13: 32812585 | C13: NESLIE OSORIO PARODIS | D13: 0012-2020-PIC | E13: 03 FEBRERO DE 2020 | F13: 31 MARZO DE 2020 | G13: VACUNADORA | H13: 1400000 | I13: 2800000 | J13: =[3]!PesosMN(I13) ->  | K13: NILSA ARIZA MARQUEZ | L13: COORDINADOR P Y P | M13: PIC | N13: 973 | O13: 1638 | P13: 2020-03-04 | Q13: https://www.contratos.gov.co/consultas/detalleProceso.do?numConstancia=20-4-10538148
A14: 13 | B14: 32863854 | C14: OLGA BARRIOS BACCA | D14: 0013-2020-PIC | E14: 03 FEBRERO DE 2020 | F14: 31 MARZO DE 2020 | G14: VACUNADORA | H14: 1400000 | I14: 2800000 | J14: =[3]!PesosMN(I14) ->  | K14: NILSA ARIZA MARQUEZ | L14: COORDINADOR P Y P | M14: PIC | N14: 974 | O14: 1639 | P14: 2020-03-04 | Q14: https://www.contratos.gov.co/consultas/detalleProceso.do?numConstancia=20-4-10538158
A15: 14 | B15: 55222617 | C15: OLGA SANDOVAL PEDRAZA | D15: 0014-2020-PIC | E15: 03 FEBRERO DE 2020 | F15: 31 MARZO DE 2020 | G15: VACUNADORA | H15: 1400000 | I15: 2800000 | J15: =[3]!PesosMN(I15) ->  | K15: NILSA ARIZA MARQUEZ | L15: COORDINADOR P Y P | M15: PIC | N15: 975 | O15: 1640 | P15: 2020-03-04 | Q15: https://www.contratos.gov.co/consultas/detalleProceso.do?numConstancia=20-4-10538190
A16: 15 | B16: 22387913 | C16: OMEIRA CECILIA BARRIOS DE ESTREN | D16: 0015-2020-PIC | E16: 03 FEBRERO DE 2020 | F16: 31 MARZO DE 2020 | G16: VACUNADORA | H16: 1400000 | I16: 2800000 | J16: =[3]!PesosMN(I16) ->  | K16: NILSA ARIZA MARQUEZ | L16: COORDINADOR P Y P | M16: PIC | N16: 976 | O16: 1641 | P16: 2020-03-04 | Q16: https://www.contratos.gov.co/consultas/detalleProceso.do?numConstancia=20-4-10538208
A17: 16 | B17: 22528921 | C17: ROSARIO DEL CARMEN CAMARGO GOMEZ | D17: 0016-2020-PIC | E17: 03 FEBRERO DE 2020 | F17: 31 MARZO DE 2020 | G17: VACUNADORA | H17: 1400000 | I17: 2800000 | J17: =[3]!PesosMN(I17) ->  | K17: NILSA ARIZA MARQUEZ | L17: COORDINADOR P Y P | M17: PIC | N17: 977 | O17: 1642 | P17: 2020-03-04 | Q17: https://www.contratos.gov.co/consultas/detalleProceso.do?numConstancia=20-4-10538214
A18: 17 | B18: 32684298 | C18: XIOMARA RODRIGUEZ CANTILLO | D18: 0017-2020-PIC | E18: 03 FEBRERO DE 2020 | F18: 31 MARZO DE 2020 | G18: VACUNADORA | H18: 1400000 | I18: 2800000 | J18: =[3]!PesosMN(I18) ->  | K18: NILSA ARIZA MARQUEZ | L18: COORDINADOR P Y P | M18: PIC | N18: 978 | O18: 1643 | P18: 2020-03-04 | Q18: https://www.contratos.gov.co/consultas/detalleProceso.do?numConstancia=20-4-10538220
A19: 18 | B19: 32820220 | C19: YARLENE DE AVILA DE ALBA | D19: 0018-2020-PIC | E19: 03 FEBRERO DE 2020 | F19: 31 MARZO DE 2020 | G19: VACUNADORA | H19: 1400000 | I19: 2800000 | J19: =[3]!PesosMN(I19) ->  | K19: NILSA ARIZA MARQUEZ | L19: COORDINADOR P Y P | M19: PIC | N19: 979 | O19: 1644 | P19: 2020-03-04 | Q19: https://www.contratos.gov.co/consultas/detalleProceso.do?numConstancia=20-4-10538227
A20: 19 | B20: 60355382 | C20: YEIGNE CONTRERAS BAYONA | D20: 0019-2020-PIC | E20: 03 FEBRERO DE 2020 | F20: 31 MARZO DE 2020 | G20: VACUNADORA | H20: 1400000 | I20: 2800000 | J20: =[3]!PesosMN(I20) ->  | K20: NILSA ARIZA MARQUEZ | L20: COORDINADOR P Y P | M20: PIC | N20: 980 | O20: 1645 | P20: 2020-03-04 | Q20: https://www.contratos.gov.co/consultas/detalleProceso.do?numConstancia=20-4-10538230
A21: 20 | B21: 32811232 | C21: YOLANDA SOFIA MORALES BERMUDEZ | D21: 0020-2020-PIC | E21: 03 FEBRERO DE 2020 | F21: 31 MARZO DE 2020 | G21: VACUNADORA- CUARTO FRIO | H21: 1600000 | I21: 3200000 | J21: =[3]!PesosMN(I21) ->  | K21: NILSA ARIZA MARQUEZ | L21: COORDINADOR P Y P | M21: PIC | N21: 981 | O21: 1646 | P21: 2020-03-04 | Q21: https://www.contratos.gov.co/consultas/detalleProceso.do?numConstancia=20-4-10538233
A22: 21 | B22: 1042428053 | C22: YURANIS DEL CARMEN BLANQUICETT MORENO | D22: 0021-2020-PIC | E22: 03 FEBRERO DE 2020 | F22: 31 MARZO DE 2020 | G22: VACUNADORA | H22: 1400000 | I22: 2800000 | J22: =[3]!PesosMN(I22) ->  | K22: NILSA ARIZA MARQUEZ | L22: COORDINADOR P Y P | M22: PIC | N22: 982 | O22: 1647 | P22: 2020-03-04 | Q22: https://www.contratos.gov.co/consultas/detalleProceso.do?numConstancia=20-4-10538241
A23: 22 | B23: 44159904 | C23: LIZLEIDYS OSORIO DOMINGUEZ | D23: 0022-2020-PIC | E23: 03 FEBRERO DE 2020 | F23: 31 MARZO DE 2020 | G23: ENFERMERA-JEFE TERRENO PAI | H23: 2120000 | I23: 4240000 | J23: =[3]!PesosMN(I23) ->  | K23: BETTY PERTUZ | L23: SUBGERENTE CIENTIFICO | M23: PIC | N23: 983 | O23: 1648 | P23: 2020-03-04 | Q23: https://www.contratos.gov.co/consultas/detalleProceso.do?numConstancia=20-4-10538245
A24: 23 | B24: 1042417305 | C24: NATALIE JASBLEIDYS COMAS TORRES | D24: 0023-2020-PIC | E24: 03 FEBRERO DE 2020 | F24: 29 DE FEBRERO 2020 | G24: AGENTE EN ATENCION PRIMARIA EN SALUD | H24: 1400000 | I24: =+H24*1 -> 1400000 | J24: =[3]!PesosMN(I24) ->  | K24: NILSA ARIZA MARQUEZ | L24: COORDINADOR P Y P | M24: PIC | N24: 984 | O24: 1649 | P24: 2020-03-04 | Q24: https://www.contratos.gov.co/consultas/detalleProceso.do?numConstancia=20-4-10538266
A25: 24 | B25: 1042431836 | C25: JULIETH PAOLA HERRERA ORTEGA | D25: 0024-2020-PIC | E25: 03 FEBRERO DE 2020 | F25: 31 MARZO DE 2020 | G25: PSICOLOGO | H25: 2500000 | I25: 5000000 | J25: =[3]!PesosMN(I25) ->  | K25: BETTY PERTUZ | L25: SUBGERENTE CIENTIFICO | M25: PIC | N25: 985 | O25: 1650 | P25: 2020-03-04 | Q25: https://www.contratos.gov.co/consultas/detalleProceso.do?numConstancia=20-4-10538271
A26: 25 | B26: 22543666 | C26: DENNYS MARIELA ARZUZAR GALVIS | D26: 0025-2020-PIC | E26: 03 FEBRERO DE 2020 | F26: 31 MARZO DE 2020 | G26: AGENTE EN ATENCION PRIMARIA EN SALUD | H26: 1400000 | I26: 2800000 | J26: =[3]!PesosMN(I26) ->  | K26: NILSA ARIZA MARQUEZ | L26: COORDINADOR PYP | M26: PIC | N26: 986 | O26: 1651 | P26: 2020-03-04 | Q26: https://www.contratos.gov.co/consultas/detalleProceso.do?numConstancia=20-4-10538274
A27: 26 | B27: 1143136225 | C27: MARTA CECILIA MARIN ZAPATA | D27: 0026-2020-PIC | E27: 03 FEBRERO DE 2020 | F27: 31 MARZO DE 2020 | G27: AGENTE EN ATENCION PRIMARIA EN SALUD | H27: 1400000 | I27: 2800000 | J27: =[3]!PesosMN(I27) ->  | K27: NILSA ARIZA MARQUEZ | L27: COORDINADOR PYP | M27: PIC | N27: 987 | O27: 1652 | P27: 2020-03-04 | Q27: https://www.contratos.gov.co/consultas/detalleProceso.do?numConstancia=20-4-10538300
A28: 27 | B28: 32758730 | C28: NUBIA ESTELA CANO GUILLEN | D28: 0027-2020-PIC | E28: 03 FEBRERO DE 2020 | F28: 31 MARZO DE 2020 | G28: AGENTE EN ATENCION PRIMARIA EN SALUD | H28: 1400000 | I28: 2800000 | J28: =[3]!PesosMN(I28) ->  | K28: NILSA ARIZA MARQUEZ | L28: COORDINADOR PYP | M28: PIC | N28: 988 | O28: 1653 | P28: 2020-03-04 | Q28: https://www.contratos.gov.co/consultas/detalleProceso.do?numConstancia=20-4-10538310
A29: 28 | B29: 32876278 | C29: CLAUDIA MARTINEZ RIVAS | D29: 0030-2020-PIC | E29: 03 FEBRERO DE 2020 | F29: 31 MARZO DE 2020 | G29: AGENTE EN ATENCION PRIMARIA EN SALUD | H29: 1400000 | I29: 2800000 | J29: =[3]!PesosMN(I29) ->  | K29: NILSA ARIZA MARQUEZ | L29: COORDINADOR PYP | M29: PIC | N29: 991 | O29: 1656 | P29: 2020-03-04 | Q29: https://www.contratos.gov.co/consultas/detalleProceso.do?numConstancia=20-4-10538317
A30: 29 | B30: 32872420 | C30: LUZ MARINA GARIZAO TAPIA | D30: 0031-2020-PIC | E30: 03 FEBRERO DE 2020 | F30: 31 MARZO DE 2020 | G30: AGENTE EN ATENCION PRIMARIA EN SALUD | H30: 1400000 | I30: 2800000 | J30: =[3]!PesosMN(I30) ->  | K30: NILSA ARIZA MARQUEZ | L30: COORDINADOR PYP | M30: PIC | N30: 992 | O30: 1657 | P30: 2020-03-04 | Q30: https://www.contratos.gov.co/consultas/detalleProceso.do?numConstancia=20-4-10538321
A31: 30 | B31: 44160070 | C31: GLORIA ZAPATA REZA | D31: 0032-2020-PIC | E31: 03 FEBRERO DE 2020 | F31: 31 MARZO DE 2020 | G31: AGENTE EN ATENCION PRIMARIA EN SALUD | H31: 1400000 | I31: 2800000 | J31: =[3]!PesosMN(I31) ->  | K31: NILSA ARIZA MARQUEZ | L31: COORDINADOR PYP | M31: PIC | N31: 993 | O31: 1658 | P31: 2020-03-04 | Q31: https://www.contratos.gov.co/consultas/detalleProceso.do?numConstancia=20-4-10538326
A32: 31 | B32: 44152281 | C32: KAREN JOHANNA JIMENEZ RAMOS | D32: 0033-2020-PIC | E32: 03 FEBRERO DE 2020 | F32: 31 MARZO DE 2020 | G32: AGENTE EN ATENCION PRIMARIA EN SALUD | H32: 1400000 | I32: 2800000 | J32: =[3]!PesosMN(I32) ->  | K32: NILSA ARIZA MARQUEZ | L32: COORDINADOR PYP | M32: PIC | N32: 994 | O32: 1659 | P32: 2020-03-04 | Q32: https://www.contratos.gov.co/consultas/detalleProceso.do?numConstancia=20-4-10538332
A33: 32 | B33: 8784783 | C33: DAIRO MANRIQUEZ MORALES BOVEA | D33: 0034-2020-PIC | E33: 03 FEBRERO DE 2020 | F33: 31 MARZO DE 2020 | G33: APOYO A LA GESTION DIMENSIÓN_DE_SALUD_AMBIENTAL: Zoonosis | H33: 1400000 | I33: 2800000 | J33: =[3]!PesosMN(I33) ->  | K33: NILSA ARIZA MARQUEZ | L33: COORDINADOR PYP | M33: PIC | N33: 995 | O33: 1660 | P33: 2020-03-04 | Q33: https://www.contratos.gov.co/consultas/detalleProceso.do?numConstancia=20-4-10538340
A34: 33 | B34: 32829868 | C34: JUDITH ISABEL ARCON MEDINA | D34: 0036-2020-PIC | E34: 03 FEBRERO DE 2020 | F34: 31 MARZO DE 2020 | G34: APOYO A LA GESTION DIMENSIÓN_DE_SALUD_AMBIENTAL: Zoonosis | H34: 1400000 | I34: 2800000 | J34: =[3]!PesosMN(I34) ->  | K34: NILSA ARIZA MARQUEZ | L34: COORDINADOR PYP | M34: PIC | N34: 997 | O34: 1662 | P34: 2020-03-04 | Q34: https://www.contratos.gov.co/consultas/detalleProceso.do?numConstancia=20-4-10538408
A35: 34 | B35: 1046698080 | C35: LUIS ALFREDO CANTILLO CABALLERO | D35: 0037-2020-PIC | E35: 03 FEBRERO DE 2020 | F35: 31 MARZO DE 2020 | G35: APOYO A LA GESTION DIMENSIÓN_DE_SALUD_AMBIENTAL: Zoonosis | H35: 1400000 | I35: 2800000 | J35: =[3]!PesosMN(I35) ->  | K35: NILSA ARIZA MARQUEZ | L35: COORDINADOR PYP | M35: PIC | N35: 998 | O35: 1663 | P35: 2020-03-04 | Q35: https://www.contratos.gov.co/consultas/detalleProceso.do?numConstancia=20-4-10538416
A36: 35 | B36: 1047337919 | C36: CANDY ISABEL ROJAS SARMIENTO | D36: 0038-2020-PIC | E36: 03 FEBRERO DE 2020 | F36: 31 MARZO DE 2020 | G36: APOYO A LA GESTION DIMENSIÓN_DE_SALUD_AMBIENTAL: Zoonosis | H36: 1400000 | I36: 2800000 | J36: =[3]!PesosMN(I36) ->  | K36: NILSA ARIZA MARQUEZ | L36: COORDINADOR PYP | M36: PIC | N36: 999 | O36: 1664 | P36: 2020-03-04 | Q36: https://www.contratos.gov.co/consultas/detalleProceso.do?numConstancia=20-4-10538418
A37: 36 | B37: 44159634 | C37: YANELIS ESTHER ESTRADA NAVAJA | D37: 0039-2020-PIC | E37: 03 FEBRERO DE 2020 | F37: 31 MARZO DE 2020 | G37: APOYO A LA GESTION DIMENSIÓN_DE_SALUD_AMBIENTAL: Zoonosis | H37: 1400000 | I37: 2800000 | J37: =[3]!PesosMN(I37) ->  | K37: NILSA ARIZA MARQUEZ | L37: COORDINADOR PYP | M37: PIC | N37: 1000 | O37: 1665 | P37: 2020-03-04 | Q37: https://www.contratos.gov.co/consultas/detalleProceso.do?numConstancia=20-4-10538432
A38: 37 | B38: 30895455 | C38: MARIA CONCEPCION ESPRIELLA BUELVAS | D38: 0040-2020-PIC | E38: 03 FEBRERO DE 2020 | F38: 31 MARZO DE 2020 | G38: APOYO A LA GESTION DIMENSIÓN_DE_SALUD_AMBIENTAL: Zoonosis | H38: 1400000 | I38: 2800000 | J38: =[3]!PesosMN(I38) ->  | K38: NILSA ARIZA MARQUEZ | L38: COORDINADOR PYP | M38: PIC | N38: 1001 | O38: 1666 | P38: 2020-03-04 | Q38: https://www.contratos.gov.co/consultas/detalleProceso.do?numConstancia=20-4-10538440
A39: 38 | B39: 72215419 | C39: ANGEL CUSTODIO BARRIOS PEDROZA | D39: 0041-2020-PIC | E39: 03 FEBRERO DE 2020 | F39: 31 MARZO DE 2020 | G39: LIDER ZOONOSIS Y AMBIENTAL | H39: 3500000 | I39: 7000000 | J39: =[3]!PesosMN(I39) ->  | K39: BETTY PERTUZ | L39: SUBGERENTE CIENTIFICO | M39: PIC | N39: 1002 | O39: 1667 | P39: 2020-03-04 | Q39: https://www.contratos.gov.co/consultas/detalleProceso.do?numConstancia=20-4-10547750
A40: 39 | B40: 32744712 | C40: CARMEN MARIA CORONADO ESCORCIA | D40: 0042-2020-PIC | E40: 03 FEBRERO DE 2020 | F40: 31 MARZO DE 2020 | G40: ENFERMERA JEFE -PIC | H40: 2500000 | I40: 5000000 | J40: =[3]!PesosMN(I40) ->  | K40: BETTY PERTUZ | L40: SUBGERENTE CIENTIFICO | M40: PIC | N40: 1003 | O40: 1668 | P40: 2020-03-04 | Q40: https://www.contratos.gov.co/consultas/detalleProceso.do?numConstancia=20-4-10538446
A41: 40 | B41: 32777087 | C41: ROSA MARGARITA SEVILLA | D41: 0043-2020-PIC | E41: 03 FEBRERO DE 2020 | F41: 31 MARZO DE 2020 | G41: NUTRICIONISTA | H41: 2500000 | I41: 5000000 | J41: =[3]!PesosMN(I41) ->  | K41: BETTY PERTUZ | L41: SUBGERENTE CIENTIFICO | M41: PIC | N41: 1004 | O41: 1669 | P41: 2020-03-04 | Q41: https://www.contratos.gov.co/consultas/detalleProceso.do?numConstancia=20-4-10538453
A42: 41 | B42: 1140873504 | C42: OLMAN JOSHUA BULA TORRES | D42: 0044-2020-PIC | E42: 03 FEBRERO DE 2020 | F42: 31 MARZO DE 2020 | G42: PSICOLOGO | H42: 2500000 | I42: 5000000 | J42: =[3]!PesosMN(I42) ->  | K42: BETTY PERTUZ | L42: SUBGERENTE CIENTIFICO | M42: PIC | N42: 1005 | O42: 1670 | P42: 2020-03-04 | Q42: https://www.contratos.gov.co/consultas/detalleProceso.do?numConstancia=20-4-10538456
A43: 42 | B43: 1043931882 | C43: AREIDIS MEDINA SANJUAN | D43: 0045-2020-PIC | E43: 03 FEBRERO DE 2020 | F43: 31 MARZO DE 2020 | G43: AGENTE EN ATENCION PRIMARIA EN SALUD | H43: 1400000 | I43: 2800000 | J43: =[3]!PesosMN(I43) ->  | K43: NILSA ARIZA MARQUEZ | L43: COORDINADOR PYP | M43: PIC | N43: 1006 | O43: 1671 | P43: 2020-03-04 | Q43: https://www.contratos.gov.co/consultas/detalleProceso.do?numConstancia=20-4-10538468
A44: 43 | B44: 1002162856 | C44: NICOLL PATRICIA NIEBLES RIVERA | D44: 0046-2020-PIC | E44: 03 FEBRERO DE 2020 | F44: 31 MARZO DE 2020 | G44: AGENTE EN ATENCION PRIMARIA EN SALUD | H44: 1400000 | I44: 2800000 | J44: =[3]!PesosMN(I44) ->  | K44: NILSA ARIZA MARQUEZ | L44: COORDINADOR PYP | M44: PIC | N44: 1007 | O44: 1672 | P44: 2020-03-04 | Q44: https://www.contratos.gov.co/consultas/detalleProceso.do?numConstancia=20-4-10538473
A45: 44 | B45: 22506781 | C45: MILDRED TATIANA GOENAGA ALVARADO | D45: 0047-2020-PIC | E45: 03 FEBRERO DE 2020 | F45: 31 MARZO DE 2020 | G45: ENFERMERA-JEFE TERRENO PAI | H45: 2120000 | I45: 4240000 | J45: =[3]!PesosMN(I45) ->  | K45: BETTY PERTUZ | L45: SUBGERENTE CIENTIFICO | M45: PIC | N45: 1008 | O45: 1673 | P45: 2020-03-04 | Q45: https://www.contratos.gov.co/consultas/detalleProceso.do?numConstancia=20-4-10538476
A46: 45 | B46: 22643912 | C46: ANGELA ROSA MORALES SANMARTIN | D46: 0048-2020-PIC | E46: 03 FEBRERO DE 2020 | F46: 31 MARZO DE 2020 | G46: VACUNADORA | H46: 1400000 | I46: 2800000 | J46: =[3]!PesosMN(I46) ->  | K46: NILSA ARIZA MARQUEZ | L46: COORDINADOR P Y P | M46: PIC | N46: 1009 | O46: 1674 | P46: 2020-03-04 | Q46: https://www.contratos.gov.co/consultas/detalleProceso.do?numConstancia=20-4-10538478
A47: 46 | B47: 44150081 | C47: MARY LUZ GUERRERO CERVANTES | D47: 0049-2020-PIC | E47: 03 FEBRERO DE 2020 | F47: 31 MARZO DE 2020 | G47: AGENTE EN ATENCION PRIMARIA EN SALUD | H47: 1400000 | I47: 2800000 | J47: =[3]!PesosMN(I47) ->  | K47: NILSA ARIZA MARQUEZ | L47: COORDINADOR PYP | M47: PIC | N47: 1010 | O47: 1675 | P47: 2020-03-04 | Q47: https://www.contratos.gov.co/consultas/detalleProceso.do?numConstancia=20-4-10547201
A48: 47 | B48: 22668428 | C48: ANABELL VELASQUEZ FERNANDEZ | D48: 0050-2020-PIC | E48: 03 FEBRERO DE 2020 | F48: 31 MARZO DE 2020 | G48: COORDINACION PIC | H48: 5800000 | I48: 11600000 | J48: =[3]!PesosMN(I48) ->  | K48: BETTY PERTUZ | L48: SUBGERENTE CIENTIFICO | M48: PIC | N48: 1011 | O48: 1676 | P48: 2020-03-04 | Q48: https://www.contratos.gov.co/consultas/detalleProceso.do?numConstancia=20-4-10547222
A49: 48 | B49: 55236945 | C49: ADRIANA PATRICIA MARQUEZ CANTILLO | D49: 0051-2020-PIC | E49: 03 FEBRERO DE 2020 | F49: 31 MARZO DE 2020 | G49: VACUNADORA | H49: 1400000 | I49: 2800000 | J49: =[3]!PesosMN(I49) ->  | K49: NILSA ARIZA MARQUEZ | L49: COORDINADOR P Y P | M49: PIC | N49: 1012 | O49: 1677 | P49: 2020-03-04 | Q49: https://www.contratos.gov.co/consultas/detalleProceso.do?numConstancia=20-4-10547222
A50: 49 | B50: 32864918 | C50: YOSMARY MARIA BENAVIDES TORRES | D50: 0052-2020-PIC | E50: 03 FEBRERO DE 2020 | F50: 31 MARZO DE 2020 | G50: VACUNADORA | H50: 1400000 | I50: 2800000 | J50: =[3]!PesosMN(I50) ->  | K50: NILSA ARIZA MARQUEZ | L50: COORDINADOR P Y P | M50: PIC | N50: 1013 | O50: 1678 | P50: 2020-03-04 | Q50: https://www.contratos.gov.co/consultas/detalleProceso.do?numConstancia=20-4-10547265
A51: 50 | B51: 32829531 | C51: MILENA DONADO OCHOA | D51: 0053-2020-PIC | E51: 03 FEBRERO DE 2020 | F51: 31 MARZO DE 2020 | G51: APOYO COORDINACION PIC | H51: 4000000 | I51: 8000000 | J51: =[3]!PesosMN(I51) ->  | K51: BETTY PERTUZ | L51: SUBGERENTE CIENTIFICO | M51: PIC | N51: 1014 | O51: 1679 | P51: 2020-03-04 | Q51: https://www.contratos.gov.co/consultas/detalleProceso.do?numConstancia=20-4-10547276
A52: 51 | B52: 1143442239 | C52: SAYURIS OCAMPO GARCIA | D52: 0054-2020-PIC | E52: 03 FEBRERO DE 2020 | F52: 31 MARZO DE 2020 | G52: =+G53 -> APOYO A LA GESTION DIMENSIÓN_DE_SALUD_AMBIENTAL: Zoonosis | H52: 1400000 | I52: 2800000 | J52: =[3]!PesosMN(I52) ->  | K52: NILSA ARIZA MARQUEZ | L52: COORDINADOR PYP | M52: PIC | N52: 1018 | O52: 1704 | P52: 2020-03-04 | Q52: https://www.contratos.gov.co/consultas/detalleProceso.do?numConstancia=20-4-10547401
A53: 52 | B53: 1043185696 | C53: MANUEL ZULBARAN | D53: 0055-2020-PIC | E53: 03 FEBRERO DE 2020 | F53: 31 MARZO DE 2020 | G53: APOYO A LA GESTION DIMENSIÓN_DE_SALUD_AMBIENTAL: Zoonosis | H53: 1400000 | I53: 2800000 | J53: =[3]!PesosMN(I53) ->  | K53: NILSA ARIZA MARQUEZ | L53: COORDINADOR PYP | M53: PIC | N53: 1022 | O53: 1705 | P53: 2020-03-04 | Q53: https://www.contratos.gov.co/consultas/detalleProceso.do?numConstancia=20-4-10547422
A54: 53 | B54: 1045675584 | C54: ISOREIDA PEREZ PALMEIRA | D54: 0056-2020-PIC | E54: 03 FEBRERO DE 2020 | F54: 31 MARZO DE 2020 | G54: ENFERMERA JEFE APS -PIC | H54: 2500000 | I54: 5000000 | J54: =[3]!PesosMN(I54) ->  | K54: BETTY PERTUZ | L54: SUBGERENTE CIENTIFICO | M54: PIC | N54: 1023 | O54: 1706 | P54: 2020-03-04 | Q54: https://www.contratos.gov.co/consultas/detalleProceso.do?numConstancia=20-4-10547276
A55: 54 | B55: 22645320 | C55: ADRIANA CRISTINA GARCIA CARRILLO | D55: 0057-2020-PIC | E55: 04 FEBRERO DE 2020 | F55: 31 MARZO DE 2020 | G55: FISIOTERAPEUTA | H55: 2500000 | I55: 5000000 | J55: =[3]!PesosMN(I55) ->  | K55: BETTY PERTUZ | L55: SUBGERENTE CIENTIFICO | M55: PIC | N55: 1032 | O55: 1714 | P55: 2020-03-04 | Q55: https://www.contratos.gov.co/consultas/detalleProceso.do?numConstancia=20-4-10547276
A56: 55 | B56: 1065575009 | C56: ANDREA TATIANA SERRANO MOLINA | D56: 0058-2020-PIC | E56: 05 FEBRERO DE 2020 | F56: 31 MARZO DE 2020 | G56: PSICOLOGO | H56: 2500000 | I56: 5000000 | J56: =[3]!PesosMN(I56) ->  | K56: BETTY PERTUZ | L56: SUBGERENTE CIENTIFICO | M56: PIC | N56: 1036 | O56: 1718 | P56: 2020-03-04 | Q56: https://www.contratos.gov.co/consultas/detalleProceso.do?numConstancia=20-4-10547438
A57: 56 | B57: 64578458 | C57: ILDA DEL PILAR PACHECO AGUIRRE | D57: 0059-2020-PIC | E57: 05 FEBRERO DE 2020 | F57: 31 MARZO DE 2020 | G57: VACUNADORA | H57: 1400000 | I57: 2800000 | J57: =[3]!PesosMN(I57) ->  | K57: NILSA ARIZA MARQUEZ | L57: COORDINADOR P Y P | M57: PIC | N57: 1037 | O57: 1719 | P57: 2020-03-04 | Q57: https://www.contratos.gov.co/consultas/detalleProceso.do?numConstancia=20-4-10547554
A58: 57 | B58: 1042449446 | C58: SAILIS MARIA FRIA VEGA | D58: 0060-2020-PIC | E58: 05 FEBRERO DE 2020 | F58: 31 MARZO DE 2020 | G58: AGENTE EN ATENCION PRIMARIA EN SALUD | H58: 1400000 | I58: 2800000 | J58: =[3]!PesosMN(I58) ->  | K58: NILSA ARIZA MARQUEZ | L58: COORDINADOR PYP | M58: PIC | N58: 1038 | O58: 1720 | P58: 2020-03-04 | Q58: https://www.contratos.gov.co/consultas/detalleProceso.do?numConstancia=20-4-10547617
A59: 58 | B59: 45687350 | C59: MARICELA CARRILLO AGUILAR | D59: 0061-2020-PIC | E59: 06 FEBRERO DE 2020 | F59: 31 MARZO DE 2020 | G59: APOYO GESTION PIC | H59: 2500000 | I59: 5000000 | J59: =[3]!PesosMN(I59) ->  | K59: BETTY PERTUZ | L59: SUBGERENTE CIENTIFICO | M59: PIC | N59: 1043 | O59: 1725 | P59: 2020-03-04 | Q59: https://www.contratos.gov.co/consultas/detalleProceso.do?numConstancia=20-4-10547633
A60: 59 | B60: 1046872703 | C60: LUCELIS DE LA HOZ ESCORCIA | D60: 0062-2020-PIC | E60: 06 FEBRERO DE 2020 | F60: 31 MARZO DE 2020 | G60: AUXILIAR ADMINISTRATIVO-PIC | H60: 1900000 | I60: 3800000 | J60: =[3]!PesosMN(I60) ->  | K60: BETTY PERTUZ | L60: SUBGERENTE CIENTIFICO | M60: PIC | N60: 1044 | O60: 1726 | P60: 2020-03-04 | Q60: https://www.contratos.gov.co/consultas/detalleProceso.do?numConstancia=20-4-10547644
A61: 60 | B61: 3779189 | C61: JAIME ENRIQUE MARQUEZ VILLAFAÑE | D61: 0063-2020-PIC | E61: 07 FEBRERO DE 2020 | F61: 31 MARZO DE 2020 | G61: APOYO A LA GESTION DIMENSIÓN_DE_SALUD_AMBIENTAL: Zoonosis | H61: 1400000 | I61: 2800000 | J61: =[3]!PesosMN(I61) ->  | K61: NILSA ARIZA MARQUEZ | L61: COORDINADOR PYP | M61: PIC | N61: 1050 | O61: 1732 | P61: 2020-03-04 | Q61: https://www.contratos.gov.co/consultas/detalleProceso.do?numConstancia=20-4-10547657
A62: 61 | B62: 22446125 | C62: GENOVEVA MARIA LLANES JEREZ | D62: 0065-2020-PIC | E62: 12 FEBRERO DE 2020 | F62: 31 MARZO DE 2020 | G62: VACUNADORA | H62: 1400000 | I62: 2800000 | J62: =[3]!PesosMN(I62) ->  | K62: NILSA ARIZA MARQUEZ | L62: COORDINADOR P Y P | M62: PIC | N62: 1071 | O62: 1802 | P62: 2020-03-04 | Q62: https://www.contratos.gov.co/consultas/detalleProceso.do?numConstancia=20-4-10547687
A63: 62 | B63: 72429089 | C63: EDER DE JESUS SEGURA BRAVO | D63: 0066-2020-PIC | E63: 12 FEBRERO DE 2020 | F63: 31 MARZO DE 2020 | G63: HIGIENISTA ORAL | H63: 1900000 | I63: 3800000 | J63: =[3]!PesosMN(I63) ->  | K63: NILSA ARIZA MARQUEZ | L63: COORDINADOR PYP | M63: PIC | N63: 1072 | O63: 1803 | P63: 2020-03-04 | Q63: https://www.contratos.gov.co/consultas/detalleProceso.do?numConstancia=20-4-10547700
A64: 63 | B64: 32862578 | C64: MILDRIS PATRICIA QUIJANO VILORIA | D64: 0067-2020-PIC | E64: 17 FEBRERO DE 2020 | F64: 31 MARZO DE 2020 | G64: HIGIENISTA ORAL | H64: 1900000 | I64: =H64*2 -> 3800000 | J64: =[3]!PesosMN(I64) ->  | K64: NILSA ARIZA MARQUEZ | L64: COORDINADOR P Y P | M64: PIC | N64: 1075 | O64: 1809 | P64: 2020-03-04 | Q64: https://www.contratos.gov.co/consultas/detalleProceso.do?numConstancia=20-4-10547743
